{"text_format":"1","workbook":"xlsx","n_sheets":7,"sheets":["Instruction","Program Invoicing","Provider Charges","Reconciliation","Sheet6","Sheet4","Data Validation"],"not_rendered":{"charts":0,"images":0,"macros":1,"external_links":0,"defined_names":4,"comments":0,"pivot_tables":0},"unopened":[],"bounds":{"document_bytes":16777216,"sheet_cells":100000,"rows_first":2000,"rows_last":500,"rows_between":2000,"halvings":0,"cell_chars":16384,"cell_head_chars":4096},"cells_cut":0,"cells_raw":0,"read":"whole","date_system":"1900"}

{"sheet":"Instruction","index":0,"n_rows":7,"n_cols":1,"rows_kept":7,"cut":false,"hidden":false,"merged":[]}
["Instructions"]
[]
["1. Copy the information in Summary tab from the Service Time Generator and paste as value in the Program Invoicing tab."]
["2. Click Update Recon button."]
["3. Copy the information in TUOS Report tab from the TUOS Generator and paste as value in the Provider Charges tab."]
["4. Click Update Recon button."]
["5. Go to Reconciliation tab to view the reconciled units based on funding source."]

{"sheet":"Program Invoicing","index":1,"n_rows":201,"n_cols":18,"rows_kept":201,"cut":false,"hidden":false,"merged":[]}
["Program Name","Credential/Degree Name/Modality","Individual/Group","Procedure Code","Unit Type","Add-On Code","Add-On Unit Type","Charge Units","Billable Minutes/Units","Add-On Charge Units","Add-On Billable Minutes/Units","Total Billable Minutes/Units"]
[null,null,null,null,null,null,null,null,null,null,null,null,{"$f":"IFERROR((VLOOKUP(B2,'Data Validation'!A:B,2,0)),0)","v":0},{"$f":"IFERROR((VLOOKUP(A2,'Data Validation'!J:K,2,0)),0)","v":0},{"$f":"IF(M2=\"Bed Days\",M2&\"-\"&N2,M2)","v":0},{"$f":"C2&\"-\"&O2","v":"-0"},{"$f":"+L2","v":0},{"$f":"+E2","v":0}]
[]
[]
[]
[]
[]
[]
[]
[]
[]
[]
[]
[]
[]
[]
[]
[]
[]
[]
[]
[]
[]
[]
[]
[]
[]
[]
[]
[]
[]
[]
[]
[]
[]
[]
[]
[]
[]
[]
[]
[]
[]
[]
[]
[]
[]
[]
[]
[]
[]
[]
[]
[]
[]
[]
[]
[]
[]
[]
[]
[]
[]
[]
[]
[]
[]
[]
[]
[]
[]
[]
[]
[]
[]
[]
[]
[]
[]
[]
[]
[]
[]
[]
[]
[]
[]
[]
[]
[]
[]
[]
[]
[]
[]
[]
[]
[]
[]
[]
[]
[]
[]
[]
[]
[]
[]
[]
[]
[]
[]
[]
[]
[]
[]
[]
[]
[]
[]
[]
[]
[]
[]
[]
[]
[]
[]
[]
[]
[]
[]
[]
[]
[]
[]
[]
[]
[]
[]
[]
[]
[]
[]
[]
[]
[]
[]
[]
[]
[]
[]
[]
[]
[]
[]
[]
[]
[]
[]
[]
[]
[]
[]
[]
[]
[]
[]
[]
[]
[]
[]
[]
[]
[]
[]
[]
[]
[]
[]
[]
[]
[]
[]
[]
[]
[]
[]
[]
[]
[]
[]
[]
[]
[]
[]
[]
[]
[]
[]
[]
["Total",null,null,null,null,null,null,null,null,null,null,{"$f":"SUBTOTAL(9,L2:L200)","v":0}]

{"sheet":"Provider Charges","index":2,"n_rows":502,"n_cols":24,"rows_kept":502,"cut":false,"hidden":false,"merged":[]}
["ProgramName","DegreeName","ProcedureCode","ProcedureName","Plan","ServiceUnitType","Sum of ChargeUnits","Unit/Minutes per Charge Unit","TOTAL Units/Minutes","Individual/Group","Interpreter Services","Interactive Complexity"]
[null,null,null,null,null,null,null,null,null,null,null,null,{"$f":"IF(C2=\"H0014\",\"Ambulatory WM\",VLOOKUP(B2,'Data Validation'!D:E,2,0))","v":{"$error":"#N/A"}},{"$f":"IFERROR((VLOOKUP(A2,'Data Validation'!G:H,2,0)),0)","v":0},{"$f":"IFERROR((_xlfn.IFS(M2=\"Bed Days\",M2&\"-\"&N2,K2=\"Y\",\"Interpreter Services\",L2=\"Y\",\"Interactive Complexity\",M2=\"Ambulatory WM\",M2&\" - \"&N2)),M2)","v":{"$error":"#N/A"}},{"$f":"VLOOKUP(E2,'Data Validation'!M:N,2,0)","v":{"$error":"#N/A"}},{"$f":"+J2&\"-\"&O2","v":{"$error":"#N/A"}},{"$f":"+J2&\"-\"&O2&\"-\"&P2","v":{"$error":"#N/A"}},{"$f":"+I2","v":0},null,null,null,null,{"$f":"_xlfn.IFS(M2=\"Bed Days\",M2&\"-\"&N2,K2=\"Y\",\"Interpreter Services\",L2=\"Y\",\"Interactive Complexity\",M2=\"Ambulatory WM\",M2&\"-\"&N2)","v":{"$error":"#N/A"}}]
[]
[]
[]
[]
[]
[]
[]
[]
[]
[]
[]
[]
[]
[]
[]
[]
[]
[]
[]
[]
[]
[]
[]
[]
[]
[]
[]
[]
[]
[]
[]
[]
[]
[]
[]
[]
[]
[]
[]
[]
[]
[]
[]
[]
[]
[]
[]
[]
[]
[]
[]
[]
[]
[]
[]
[]
[]
[]
[]
[]
[]
[]
[]
[]
[]
[]
[]
[]
[]
[]
[]
[]
[]
[]
[]
[]
[]
[]
[]
[]
[]
[]
[]
[]
[]
[]
[]
[]
[]
[]
[]
[]
[]
[]
[]
[]
[]
[]
[]
[]
[]
[]
[]
[]
[]
[]
[]
[]
[]
[]
[]
[]
[]
[]
[]
[]
[]
[]
[]
[]
[]
[]
[]
[]
[]
[]
[]
[]
[]
[]
[]
[]
[]
[]
[]
[]
[]
[]
[]
[]
[]
[]
[]
[]
[]
[]
[]
[]
[]
[]
[]
[]
[]
[]
[]
[]
[]
[]
[]
[]
[]
[]
[]
[]
[]
[]
[]
[]
[]
[]
[]
[]
[]
[]
[]
[]
[]
[]
[]
[]
[]
[]
[]
[]
[]
[]
[]
[]
[]
[]
[]
[]
[]
[]
[]
[]
[]
[]
[]
[]
[]
[]
[]
[]
[]
[]
[]
[]
[]
[]
[]
[]
[]
[]
[]
[]
[]
[]
[]
[]
[]
[]
[]
[]
[]
[]
[]
[]
[]
[]
[]
[]
[]
[]
[]
[]
[]
[]
[]
[]
[]
[]
[]
[]
[]
[]
[]
[]
[]
[]
[]
[]
[]
[]
[]
[]
[]
[]
[]
[]
[]
[]
[]
[]
[]
[]
[]
[]
[]
[]
[]
[]
[]
[]
[]
[]
[]
[]
[]
[]
[]
[]
[]
[]
[]
[]
[]
[]
[]
[]
[]
[]
[]
[]
[]
[]
[]
[]
[]
[]
[]
[]
[]
[]
[]
[]
[]
[]
[]
[]
[]
[]
[]
[]
[]
[]
[]
[]
[]
[]
[]
[]
[]
[]
[]
[]
[]
[]
[]
[]
[]
[]
[]
[]
[]
[]
[]
[]
[]
[]
[]
[]
[]
[]
[]
[]
[]
[]
[]
[]
[]
[]
[]
[]
[]
[]
[]
[]
[]
[]
[]
[]
[]
[]
[]
[]
[]
[]
[]
[]
[]
[]
[]
[]
[]
[]
[]
[]
[]
[]
[]
[]
[]
[]
[]
[]
[]
[]
[]
[]
[]
[]
[]
[]
[]
[]
[]
[]
[]
[]
[]
[]
[]
[]
[]
[]
[]
[]
[]
[]
[]
[]
[]
[]
[]
[]
[]
[]
[]
[]
[]
[]
[]
[]
[]
[]
[]
[]
[]
[]
[]
[]
[]
[]
[]
[]
[]
[]
[]
[]
[]
[]
[]
[]
[]
[]
[]
[]
[]
[]
[]
[]
[]
[]
[]
[]
[]
[]
[]
[]
[]
[]
[]
[]
[]
[]
[]
[]
[]
[]
[]
[]
[]
[]
[]
[]
[]
[]
[]
[]
[]
[]
[]
[]
[]
[]
[]
[]
[]
[]
[]
[]
[]
[]
[]
[]
[]
[]
[]
["Total",null,null,null,null,null,null,null,{"$f":"SUBTOTAL(9,I2:I501)","v":0}]

{"sheet":"Reconciliation","index":3,"n_rows":62,"n_cols":9,"rows_kept":62,"cut":false,"hidden":false,"merged":[]}
["Credential/Service Modality","Unit Type","Total Units",null,"DMC Billable",null,"OHC",null,"County Billable"]
[{"$f":"_xlfn.UNIQUE(Sheet6!A:A)","v":0},{"$f":"IFERROR((VLOOKUP(A2,'Program Invoicing'!P:R,3,0)),\" \")","v":" "},{"$f":"IFERROR((IF(A2=0,0,SUMIF('Program Invoicing'!$P$2:$Q$297,A2,'Program Invoicing'!$Q$2:$Q$297))),0)","v":0},{"$f":"A2&\"-\"&\"Medi-Cal DMC\"","v":"0-Medi-Cal DMC"},{"$f":"SUMIF('Provider Charges'!$R$2:$S$501,D2,'Provider Charges'!$S$2:$S$501)","v":0},{"$f":"A2&\"-\"&\"OHC\"","v":"0-OHC"},{"$f":"SUMIF('Provider Charges'!$R$2:$S$501,F2,'Provider Charges'!$S$2:$S$501)","v":0},{"$f":"A2&\"-\"&\"County Billable SUD\"","v":"0-County Billable SUD"},{"$f":"IF(C2>0,C2-E2-G2,SUMIF('Provider Charges'!$R$1:$S$501,H2,'Provider Charges'!$S$1:$S$501))","v":0}]
["-0",{"$f":"IFERROR((VLOOKUP(A3,'Program Invoicing'!P:R,3,0)),\" \")","v":0},{"$f":"IFERROR((IF(A3=0,0,SUMIF('Program Invoicing'!$P$2:$Q$297,A3,'Program Invoicing'!$Q$2:$Q$297))),0)","v":0},{"$f":"A3&\"-\"&\"Medi-Cal DMC\"","v":"-0-Medi-Cal DMC"},{"$f":"SUMIF('Provider Charges'!$R$2:$S$501,D3,'Provider Charges'!$S$2:$S$501)","v":0},{"$f":"A3&\"-\"&\"OHC\"","v":"-0-OHC"},{"$f":"SUMIF('Provider Charges'!$R$2:$S$501,F3,'Provider Charges'!$S$2:$S$501)","v":0},{"$f":"A3&\"-\"&\"County Billable SUD\"","v":"-0-County Billable SUD"},{"$f":"IF(C3>0,C3-E3-G3,SUMIF('Provider Charges'!$R$1:$S$501,H3,'Provider Charges'!$S$1:$S$501))","v":0}]
[0,{"$f":"IFERROR((VLOOKUP(A4,'Program Invoicing'!P:R,3,0)),\" \")","v":" "},{"$f":"IFERROR((IF(A4=0,0,SUMIF('Program Invoicing'!$P$2:$Q$297,A4,'Program Invoicing'!$Q$2:$Q$297))),0)","v":0},"0-Medi-Cal DMC",{"$f":"SUMIF('Provider Charges'!$R$2:$S$501,D4,'Provider Charges'!$S$2:$S$501)","v":0},"0-OHC",{"$f":"SUMIF('Provider Charges'!$R$2:$S$501,F4,'Provider Charges'!$S$2:$S$501)","v":0},"0-County Billable SUD",{"$f":"IF(C4>0,C4-E4-G4,SUMIF('Provider Charges'!$R$1:$S$501,H4,'Provider Charges'!$S$1:$S$501))","v":0}]
[{"$error":"#N/A"},{"$f":"IFERROR((VLOOKUP(A5,'Program Invoicing'!P:R,3,0)),\" \")","v":" "},{"$f":"IFERROR((IF(A5=0,0,SUMIF('Program Invoicing'!$P$2:$Q$297,A5,'Program Invoicing'!$Q$2:$Q$297))),0)","v":0},{"$error":"#N/A"},{"$f":"SUMIF('Provider Charges'!$R$2:$S$501,D5,'Provider Charges'!$S$2:$S$501)","v":0},{"$error":"#N/A"},{"$f":"SUMIF('Provider Charges'!$R$2:$S$501,F5,'Provider Charges'!$S$2:$S$501)","v":0},{"$error":"#N/A"},{"$f":"IF(C5>0,C5-E5-G5,SUMIF('Provider Charges'!$R$1:$S$501,H5,'Provider Charges'!$S$1:$S$501))","v":0}]
[null,{"$f":"IFERROR((VLOOKUP(A6,'Program Invoicing'!P:R,3,0)),\" \")","v":" "},{"$f":"IFERROR((IF(A6=0,0,SUMIF('Program Invoicing'!$P$2:$Q$297,A6,'Program Invoicing'!$Q$2:$Q$297))),0)","v":0},"-Medi-Cal DMC",{"$f":"SUMIF('Provider Charges'!$R$2:$S$501,D6,'Provider Charges'!$S$2:$S$501)","v":0},"-OHC",{"$f":"SUMIF('Provider Charges'!$R$2:$S$501,F6,'Provider Charges'!$S$2:$S$501)","v":0},"-County Billable SUD",{"$f":"IF(C6>0,C6-E6-G6,SUMIF('Provider Charges'!$R$1:$S$501,H6,'Provider Charges'!$S$1:$S$501))","v":0}]
[null,{"$f":"IFERROR((VLOOKUP(A7,'Program Invoicing'!P:R,3,0)),\" \")","v":" "},{"$f":"IFERROR((IF(A7=0,0,SUMIF('Program Invoicing'!$P$2:$Q$297,A7,'Program Invoicing'!$Q$2:$Q$297))),0)","v":0},"-Medi-Cal DMC",{"$f":"SUMIF('Provider Charges'!$R$2:$S$501,D7,'Provider Charges'!$S$2:$S$501)","v":0},"-OHC",{"$f":"SUMIF('Provider Charges'!$R$2:$S$501,F7,'Provider Charges'!$S$2:$S$501)","v":0},"-County Billable SUD",{"$f":"IF(C7>0,C7-E7-G7,SUMIF('Provider Charges'!$R$1:$S$501,H7,'Provider Charges'!$S$1:$S$501))","v":0}]
[null,{"$f":"IFERROR((VLOOKUP(A8,'Program Invoicing'!P:R,3,0)),\" \")","v":" "},{"$f":"IFERROR((IF(A8=0,0,SUMIF('Program Invoicing'!$P$2:$Q$297,A8,'Program Invoicing'!$Q$2:$Q$297))),0)","v":0},"-Medi-Cal DMC",{"$f":"SUMIF('Provider Charges'!$R$2:$S$501,D8,'Provider Charges'!$S$2:$S$501)","v":0},"-OHC",{"$f":"SUMIF('Provider Charges'!$R$2:$S$501,F8,'Provider Charges'!$S$2:$S$501)","v":0},"-County Billable SUD",{"$f":"IF(C8>0,C8-E8-G8,SUMIF('Provider Charges'!$R$1:$S$501,H8,'Provider Charges'!$S$1:$S$501))","v":0}]
[null,{"$f":"IFERROR((VLOOKUP(A9,'Program Invoicing'!P:R,3,0)),\" \")","v":" "},{"$f":"IFERROR((IF(A9=0,0,SUMIF('Program Invoicing'!$P$2:$Q$297,A9,'Program Invoicing'!$Q$2:$Q$297))),0)","v":0},"-Medi-Cal DMC",{"$f":"SUMIF('Provider Charges'!$R$2:$S$501,D9,'Provider Charges'!$S$2:$S$501)","v":0},"-OHC",{"$f":"SUMIF('Provider Charges'!$R$2:$S$501,F9,'Provider Charges'!$S$2:$S$501)","v":0},"-County Billable SUD",{"$f":"IF(C9>0,C9-E9-G9,SUMIF('Provider Charges'!$R$1:$S$501,H9,'Provider Charges'!$S$1:$S$501))","v":0}]
[null,{"$f":"IFERROR((VLOOKUP(A10,'Program Invoicing'!P:R,3,0)),\" \")","v":" "},{"$f":"IFERROR((IF(A10=0,0,SUMIF('Program Invoicing'!$P$2:$Q$297,A10,'Program Invoicing'!$Q$2:$Q$297))),0)","v":0},{"$f":"A10&\"-\"&\"Medi-Cal DMC\"","v":"-Medi-Cal DMC"},{"$f":"SUMIF('Provider Charges'!$R$2:$S$501,D10,'Provider Charges'!$S$2:$S$501)","v":0},"-OHC",{"$f":"SUMIF('Provider Charges'!$R$2:$S$501,F10,'Provider Charges'!$S$2:$S$501)","v":0},"-County Billable SUD",{"$f":"IF(C10>0,C10-E10-G10,SUMIF('Provider Charges'!$R$1:$S$501,H10,'Provider Charges'!$S$1:$S$501))","v":0}]
[null,{"$f":"IFERROR((VLOOKUP(A11,'Program Invoicing'!P:R,3,0)),\" \")","v":" "},{"$f":"IFERROR((IF(A11=0,0,SUMIF('Program Invoicing'!$P$2:$Q$297,A11,'Program Invoicing'!$Q$2:$Q$297))),0)","v":0},"-Medi-Cal DMC",{"$f":"SUMIF('Provider Charges'!$R$2:$S$501,D11,'Provider Charges'!$S$2:$S$501)","v":0},"-OHC",{"$f":"SUMIF('Provider Charges'!$R$2:$S$501,F11,'Provider Charges'!$S$2:$S$501)","v":0},"-County Billable SUD",{"$f":"IF(C11>0,C11-E11-G11,SUMIF('Provider Charges'!$R$1:$S$501,H11,'Provider Charges'!$S$1:$S$501))","v":0}]
[null,{"$f":"IFERROR((VLOOKUP(A12,'Program Invoicing'!P:R,3,0)),\" \")","v":" "},{"$f":"IFERROR((IF(A12=0,0,SUMIF('Program Invoicing'!$P$2:$Q$297,A12,'Program Invoicing'!$Q$2:$Q$297))),0)","v":0},{"$f":"A12&\"-\"&\"Medi-Cal DMC\"","v":"-Medi-Cal DMC"},{"$f":"SUMIF('Provider Charges'!$R$2:$S$501,D12,'Provider Charges'!$S$2:$S$501)","v":0},"-OHC",{"$f":"SUMIF('Provider Charges'!$R$2:$S$501,F12,'Provider Charges'!$S$2:$S$501)","v":0},"-County Billable SUD",{"$f":"IF(C12>0,C12-E12-G12,SUMIF('Provider Charges'!$R$1:$S$501,H12,'Provider Charges'!$S$1:$S$501))","v":0}]
[null,{"$f":"IFERROR((VLOOKUP(A13,'Program Invoicing'!P:R,3,0)),\" \")","v":" "},{"$f":"IFERROR((IF(A13=0,0,SUMIF('Program Invoicing'!$P$2:$Q$297,A13,'Program Invoicing'!$Q$2:$Q$297))),0)","v":0},"-Medi-Cal DMC",{"$f":"SUMIF('Provider Charges'!$R$2:$S$501,D13,'Provider Charges'!$S$2:$S$501)","v":0},"-OHC",{"$f":"SUMIF('Provider Charges'!$R$2:$S$501,F13,'Provider Charges'!$S$2:$S$501)","v":0},"-County Billable SUD",{"$f":"IF(C13>0,C13-E13-G13,SUMIF('Provider Charges'!$R$1:$S$501,H13,'Provider Charges'!$S$1:$S$501))","v":0}]
[null,{"$f":"IFERROR((VLOOKUP(A14,'Program Invoicing'!P:R,3,0)),\" \")","v":" "},{"$f":"IFERROR((IF(A14=0,0,SUMIF('Program Invoicing'!$P$2:$Q$297,A14,'Program Invoicing'!$Q$2:$Q$297))),0)","v":0},"-Medi-Cal DMC",{"$f":"SUMIF('Provider Charges'!$R$2:$S$501,D14,'Provider Charges'!$S$2:$S$501)","v":0},"-OHC",{"$f":"SUMIF('Provider Charges'!$R$2:$S$501,F14,'Provider Charges'!$S$2:$S$501)","v":0},"-County Billable SUD",{"$f":"IF(C14>0,C14-E14-G14,SUMIF('Provider Charges'!$R$1:$S$501,H14,'Provider Charges'!$S$1:$S$501))","v":0}]
[null,{"$f":"IFERROR((VLOOKUP(A15,'Program Invoicing'!P:R,3,0)),\" \")","v":" "},{"$f":"IFERROR((IF(A15=0,0,SUMIF('Program Invoicing'!$P$2:$Q$297,A15,'Program Invoicing'!$Q$2:$Q$297))),0)","v":0},"-Medi-Cal DMC",{"$f":"SUMIF('Provider Charges'!$R$2:$S$501,D15,'Provider Charges'!$S$2:$S$501)","v":0},"-OHC",{"$f":"SUMIF('Provider Charges'!$R$2:$S$501,F15,'Provider Charges'!$S$2:$S$501)","v":0},"-County Billable SUD",{"$f":"IF(C15>0,C15-E15-G15,SUMIF('Provider Charges'!$R$1:$S$501,H15,'Provider Charges'!$S$1:$S$501))","v":0}]
[null,{"$f":"IFERROR((VLOOKUP(A16,'Program Invoicing'!P:R,3,0)),\" \")","v":" "},{"$f":"IFERROR((IF(A16=0,0,SUMIF('Program Invoicing'!$P$2:$Q$297,A16,'Program Invoicing'!$Q$2:$Q$297))),0)","v":0},"-Medi-Cal DMC",{"$f":"SUMIF('Provider Charges'!$R$2:$S$501,D16,'Provider Charges'!$S$2:$S$501)","v":0},"-OHC",{"$f":"SUMIF('Provider Charges'!$R$2:$S$501,F16,'Provider Charges'!$S$2:$S$501)","v":0},"-County Billable SUD",{"$f":"IF(C16>0,C16-E16-G16,SUMIF('Provider Charges'!$R$1:$S$501,H16,'Provider Charges'!$S$1:$S$501))","v":0}]
[null,{"$f":"IFERROR((VLOOKUP(A17,'Program Invoicing'!P:R,3,0)),\" \")","v":" "},{"$f":"IFERROR((IF(A17=0,0,SUMIF('Program Invoicing'!$P$2:$Q$297,A17,'Program Invoicing'!$Q$2:$Q$297))),0)","v":0},"-Medi-Cal DMC",{"$f":"SUMIF('Provider Charges'!$R$2:$S$501,D17,'Provider Charges'!$S$2:$S$501)","v":0},"-OHC",{"$f":"SUMIF('Provider Charges'!$R$2:$S$501,F17,'Provider Charges'!$S$2:$S$501)","v":0},"-County Billable SUD",{"$f":"IF(C17>0,C17-E17-G17,SUMIF('Provider Charges'!$R$1:$S$501,H17,'Provider Charges'!$S$1:$S$501))","v":0}]
[null,{"$f":"IFERROR((VLOOKUP(A18,'Program Invoicing'!P:R,3,0)),\" \")","v":" "},{"$f":"IFERROR((IF(A18=0,0,SUMIF('Program Invoicing'!$P$2:$Q$297,A18,'Program Invoicing'!$Q$2:$Q$297))),0)","v":0},"-Medi-Cal DMC",{"$f":"SUMIF('Provider Charges'!$R$2:$S$501,D18,'Provider Charges'!$S$2:$S$501)","v":0},"-OHC",{"$f":"SUMIF('Provider Charges'!$R$2:$S$501,F18,'Provider Charges'!$S$2:$S$501)","v":0},"-County Billable SUD",{"$f":"IF(C18>0,C18-E18-G18,SUMIF('Provider Charges'!$R$1:$S$501,H18,'Provider Charges'!$S$1:$S$501))","v":0}]
[null,{"$f":"IFERROR((VLOOKUP(A19,'Program Invoicing'!P:R,3,0)),\" \")","v":" "},{"$f":"IFERROR((IF(A19=0,0,SUMIF('Program Invoicing'!$P$2:$Q$297,A19,'Program Invoicing'!$Q$2:$Q$297))),0)","v":0},"-Medi-Cal DMC",{"$f":"SUMIF('Provider Charges'!$R$2:$S$501,D19,'Provider Charges'!$S$2:$S$501)","v":0},"-OHC",{"$f":"SUMIF('Provider Charges'!$R$2:$S$501,F19,'Provider Charges'!$S$2:$S$501)","v":0},"-County Billable SUD",{"$f":"IF(C19>0,C19-E19-G19,SUMIF('Provider Charges'!$R$1:$S$501,H19,'Provider Charges'!$S$1:$S$501))","v":0}]
[null,{"$f":"IFERROR((VLOOKUP(A20,'Program Invoicing'!P:R,3,0)),\" \")","v":" "},{"$f":"IFERROR((IF(A20=0,0,SUMIF('Program Invoicing'!$P$2:$Q$297,A20,'Program Invoicing'!$Q$2:$Q$297))),0)","v":0},"-Medi-Cal DMC",{"$f":"SUMIF('Provider Charges'!$R$2:$S$501,D20,'Provider Charges'!$S$2:$S$501)","v":0},"-OHC",{"$f":"SUMIF('Provider Charges'!$R$2:$S$501,F20,'Provider Charges'!$S$2:$S$501)","v":0},"-County Billable SUD",{"$f":"IF(C20>0,C20-E20-G20,SUMIF('Provider Charges'!$R$1:$S$501,H20,'Provider Charges'!$S$1:$S$501))","v":0}]
[null,{"$f":"IFERROR((VLOOKUP(A21,'Program Invoicing'!P:R,3,0)),\" \")","v":" "},{"$f":"IFERROR((IF(A21=0,0,SUMIF('Program Invoicing'!$P$2:$Q$297,A21,'Program Invoicing'!$Q$2:$Q$297))),0)","v":0},"-Medi-Cal DMC",{"$f":"SUMIF('Provider Charges'!$R$2:$S$501,D21,'Provider Charges'!$S$2:$S$501)","v":0},"-OHC",{"$f":"SUMIF('Provider Charges'!$R$2:$S$501,F21,'Provider Charges'!$S$2:$S$501)","v":0},"-County Billable SUD",{"$f":"IF(C21>0,C21-E21-G21,SUMIF('Provider Charges'!$R$1:$S$501,H21,'Provider Charges'!$S$1:$S$501))","v":0}]
[null,{"$f":"IFERROR((VLOOKUP(A22,'Program Invoicing'!P:R,3,0)),\" \")","v":" "},{"$f":"IFERROR((IF(A22=0,0,SUMIF('Program Invoicing'!$P$2:$Q$297,A22,'Program Invoicing'!$Q$2:$Q$297))),0)","v":0},"-Medi-Cal DMC",{"$f":"SUMIF('Provider Charges'!$R$2:$S$501,D22,'Provider Charges'!$S$2:$S$501)","v":0},"-OHC",{"$f":"SUMIF('Provider Charges'!$R$2:$S$501,F22,'Provider Charges'!$S$2:$S$501)","v":0},"-County Billable SUD",{"$f":"IF(C22>0,C22-E22-G22,SUMIF('Provider Charges'!$R$1:$S$501,H22,'Provider Charges'!$S$1:$S$501))","v":0}]
[null,{"$f":"IFERROR((VLOOKUP(A23,'Program Invoicing'!P:R,3,0)),\" \")","v":" "},{"$f":"IFERROR((IF(A23=0,0,SUMIF('Program Invoicing'!$P$2:$Q$297,A23,'Program Invoicing'!$Q$2:$Q$297))),0)","v":0},"-Medi-Cal DMC",{"$f":"SUMIF('Provider Charges'!$R$2:$S$501,D23,'Provider Charges'!$S$2:$S$501)","v":0},"-OHC",{"$f":"SUMIF('Provider Charges'!$R$2:$S$501,F23,'Provider Charges'!$S$2:$S$501)","v":0},"-County Billable SUD",{"$f":"IF(C23>0,C23-E23-G23,SUMIF('Provider Charges'!$R$1:$S$501,H23,'Provider Charges'!$S$1:$S$501))","v":0}]
[null,{"$f":"IFERROR((VLOOKUP(A24,'Program Invoicing'!P:R,3,0)),\" \")","v":" "},{"$f":"IFERROR((IF(A24=0,0,SUMIF('Program Invoicing'!$P$2:$Q$297,A24,'Program Invoicing'!$Q$2:$Q$297))),0)","v":0},"-Medi-Cal DMC",{"$f":"SUMIF('Provider Charges'!$R$2:$S$501,D24,'Provider Charges'!$S$2:$S$501)","v":0},"-OHC",{"$f":"SUMIF('Provider Charges'!$R$2:$S$501,F24,'Provider Charges'!$S$2:$S$501)","v":0},"-County Billable SUD",{"$f":"IF(C24>0,C24-E24-G24,SUMIF('Provider Charges'!$R$1:$S$501,H24,'Provider Charges'!$S$1:$S$501))","v":0}]
[null,{"$f":"IFERROR((VLOOKUP(A25,'Program Invoicing'!P:R,3,0)),\" \")","v":" "},{"$f":"IFERROR((IF(A25=0,0,SUMIF('Program Invoicing'!$P$2:$Q$297,A25,'Program Invoicing'!$Q$2:$Q$297))),0)","v":0},"-Medi-Cal DMC",{"$f":"SUMIF('Provider Charges'!$R$2:$S$501,D25,'Provider Charges'!$S$2:$S$501)","v":0},"-OHC",{"$f":"SUMIF('Provider Charges'!$R$2:$S$501,F25,'Provider Charges'!$S$2:$S$501)","v":0},"-County Billable SUD",{"$f":"IF(C25>0,C25-E25-G25,SUMIF('Provider Charges'!$R$1:$S$501,H25,'Provider Charges'!$S$1:$S$501))","v":0}]
[null,{"$f":"IFERROR((VLOOKUP(A26,'Program Invoicing'!P:R,3,0)),\" \")","v":" "},{"$f":"IFERROR((IF(A26=0,0,SUMIF('Program Invoicing'!$P$2:$Q$297,A26,'Program Invoicing'!$Q$2:$Q$297))),0)","v":0},"-Medi-Cal DMC",{"$f":"SUMIF('Provider Charges'!$R$2:$S$501,D26,'Provider Charges'!$S$2:$S$501)","v":0},"-OHC",{"$f":"SUMIF('Provider Charges'!$R$2:$S$501,F26,'Provider Charges'!$S$2:$S$501)","v":0},"-County Billable SUD",{"$f":"IF(C26>0,C26-E26-G26,SUMIF('Provider Charges'!$R$1:$S$501,H26,'Provider Charges'!$S$1:$S$501))","v":0}]
[null,{"$f":"IFERROR((VLOOKUP(A27,'Program Invoicing'!P:R,3,0)),\" \")","v":" "},{"$f":"IFERROR((IF(A27=0,0,SUMIF('Program Invoicing'!$P$2:$Q$297,A27,'Program Invoicing'!$Q$2:$Q$297))),0)","v":0},"-Medi-Cal DMC",{"$f":"SUMIF('Provider Charges'!$R$2:$S$501,D27,'Provider Charges'!$S$2:$S$501)","v":0},"-OHC",{"$f":"SUMIF('Provider Charges'!$R$2:$S$501,F27,'Provider Charges'!$S$2:$S$501)","v":0},"-County Billable SUD",{"$f":"IF(C27>0,C27-E27-G27,SUMIF('Provider Charges'!$R$1:$S$501,H27,'Provider Charges'!$S$1:$S$501))","v":0}]
[null,{"$f":"IFERROR((VLOOKUP(A28,'Program Invoicing'!P:R,3,0)),\" \")","v":" "},{"$f":"IFERROR((IF(A28=0,0,SUMIF('Program Invoicing'!$P$2:$Q$297,A28,'Program Invoicing'!$Q$2:$Q$297))),0)","v":0},"-Medi-Cal DMC",{"$f":"SUMIF('Provider Charges'!$R$2:$S$501,D28,'Provider Charges'!$S$2:$S$501)","v":0},"-OHC",{"$f":"SUMIF('Provider Charges'!$R$2:$S$501,F28,'Provider Charges'!$S$2:$S$501)","v":0},"-County Billable SUD",{"$f":"IF(C28>0,C28-E28-G28,SUMIF('Provider Charges'!$R$1:$S$501,H28,'Provider Charges'!$S$1:$S$501))","v":0}]
[null,{"$f":"IFERROR((VLOOKUP(A29,'Program Invoicing'!P:R,3,0)),\" \")","v":" "},{"$f":"IFERROR((IF(A29=0,0,SUMIF('Program Invoicing'!$P$2:$Q$297,A29,'Program Invoicing'!$Q$2:$Q$297))),0)","v":0},"-Medi-Cal DMC",{"$f":"SUMIF('Provider Charges'!$R$2:$S$501,D29,'Provider Charges'!$S$2:$S$501)","v":0},"-OHC",{"$f":"SUMIF('Provider Charges'!$R$2:$S$501,F29,'Provider Charges'!$S$2:$S$501)","v":0},"-County Billable SUD",{"$f":"IF(C29>0,C29-E29-G29,SUMIF('Provider Charges'!$R$1:$S$501,H29,'Provider Charges'!$S$1:$S$501))","v":0}]
[null,{"$f":"IFERROR((VLOOKUP(A30,'Program Invoicing'!P:R,3,0)),\" \")","v":" "},{"$f":"IFERROR((IF(A30=0,0,SUMIF('Program Invoicing'!$P$2:$Q$297,A30,'Program Invoicing'!$Q$2:$Q$297))),0)","v":0},"-Medi-Cal DMC",{"$f":"SUMIF('Provider Charges'!$R$2:$S$501,D30,'Provider Charges'!$S$2:$S$501)","v":0},"-OHC",{"$f":"SUMIF('Provider Charges'!$R$2:$S$501,F30,'Provider Charges'!$S$2:$S$501)","v":0},"-County Billable SUD",{"$f":"IF(C30>0,C30-E30-G30,SUMIF('Provider Charges'!$R$1:$S$501,H30,'Provider Charges'!$S$1:$S$501))","v":0}]
[null,{"$f":"IFERROR((VLOOKUP(A31,'Program Invoicing'!P:R,3,0)),\" \")","v":" "},{"$f":"IFERROR((IF(A31=0,0,SUMIF('Program Invoicing'!$P$2:$Q$297,A31,'Program Invoicing'!$Q$2:$Q$297))),0)","v":0},"-Medi-Cal DMC",{"$f":"SUMIF('Provider Charges'!$R$2:$S$501,D31,'Provider Charges'!$S$2:$S$501)","v":0},"-OHC",{"$f":"SUMIF('Provider Charges'!$R$2:$S$501,F31,'Provider Charges'!$S$2:$S$501)","v":0},"-County Billable SUD",{"$f":"IF(C31>0,C31-E31-G31,SUMIF('Provider Charges'!$R$1:$S$501,H31,'Provider Charges'!$S$1:$S$501))","v":0}]
[null,{"$f":"IFERROR((VLOOKUP(A32,'Program Invoicing'!P:R,3,0)),\" \")","v":" "},{"$f":"IFERROR((IF(A32=0,0,SUMIF('Program Invoicing'!$P$2:$Q$297,A32,'Program Invoicing'!$Q$2:$Q$297))),0)","v":0},"-Medi-Cal DMC",{"$f":"SUMIF('Provider Charges'!$R$2:$S$501,D32,'Provider Charges'!$S$2:$S$501)","v":0},"-OHC",{"$f":"SUMIF('Provider Charges'!$R$2:$S$501,F32,'Provider Charges'!$S$2:$S$501)","v":0},"-County Billable SUD",{"$f":"IF(C32>0,C32-E32-G32,SUMIF('Provider Charges'!$R$1:$S$501,H32,'Provider Charges'!$S$1:$S$501))","v":0}]
[null,{"$f":"IFERROR((VLOOKUP(A33,'Program Invoicing'!P:R,3,0)),\" \")","v":" "},{"$f":"IFERROR((IF(A33=0,0,SUMIF('Program Invoicing'!$P$2:$Q$297,A33,'Program Invoicing'!$Q$2:$Q$297))),0)","v":0},"-Medi-Cal DMC",{"$f":"SUMIF('Provider Charges'!$R$2:$S$501,D33,'Provider Charges'!$S$2:$S$501)","v":0},"-OHC",{"$f":"SUMIF('Provider Charges'!$R$2:$S$501,F33,'Provider Charges'!$S$2:$S$501)","v":0},"-County Billable SUD",{"$f":"IF(C33>0,C33-E33-G33,SUMIF('Provider Charges'!$R$1:$S$501,H33,'Provider Charges'!$S$1:$S$501))","v":0}]
[null,{"$f":"IFERROR((VLOOKUP(A34,'Program Invoicing'!P:R,3,0)),\" \")","v":" "},{"$f":"IFERROR((IF(A34=0,0,SUMIF('Program Invoicing'!$P$2:$Q$297,A34,'Program Invoicing'!$Q$2:$Q$297))),0)","v":0},"-Medi-Cal DMC",{"$f":"SUMIF('Provider Charges'!$R$2:$S$501,D34,'Provider Charges'!$S$2:$S$501)","v":0},"-OHC",{"$f":"SUMIF('Provider Charges'!$R$2:$S$501,F34,'Provider Charges'!$S$2:$S$501)","v":0},"-County Billable SUD",{"$f":"IF(C34>0,C34-E34-G34,SUMIF('Provider Charges'!$R$1:$S$501,H34,'Provider Charges'!$S$1:$S$501))","v":0}]
[null,{"$f":"IFERROR((VLOOKUP(A35,'Program Invoicing'!P:R,3,0)),\" \")","v":" "},{"$f":"IFERROR((IF(A35=0,0,SUMIF('Program Invoicing'!$P$2:$Q$297,A35,'Program Invoicing'!$Q$2:$Q$297))),0)","v":0},"-Medi-Cal DMC",{"$f":"SUMIF('Provider Charges'!$R$2:$S$501,D35,'Provider Charges'!$S$2:$S$501)","v":0},"-OHC",{"$f":"SUMIF('Provider Charges'!$R$2:$S$501,F35,'Provider Charges'!$S$2:$S$501)","v":0},"-County Billable SUD",{"$f":"IF(C35>0,C35-E35-G35,SUMIF('Provider Charges'!$R$1:$S$501,H35,'Provider Charges'!$S$1:$S$501))","v":0}]
[null,{"$f":"IFERROR((VLOOKUP(A36,'Program Invoicing'!P:R,3,0)),\" \")","v":" "},{"$f":"IFERROR((IF(A36=0,0,SUMIF('Program Invoicing'!$P$2:$Q$297,A36,'Program Invoicing'!$Q$2:$Q$297))),0)","v":0},"-Medi-Cal DMC",{"$f":"SUMIF('Provider Charges'!$R$2:$S$501,D36,'Provider Charges'!$S$2:$S$501)","v":0},"-OHC",{"$f":"SUMIF('Provider Charges'!$R$2:$S$501,F36,'Provider Charges'!$S$2:$S$501)","v":0},"-County Billable SUD",{"$f":"IF(C36>0,C36-E36-G36,SUMIF('Provider Charges'!$R$1:$S$501,H36,'Provider Charges'!$S$1:$S$501))","v":0}]
[null,{"$f":"IFERROR((VLOOKUP(A37,'Program Invoicing'!P:R,3,0)),\" \")","v":" "},{"$f":"IFERROR((IF(A37=0,0,SUMIF('Program Invoicing'!$P$2:$Q$297,A37,'Program Invoicing'!$Q$2:$Q$297))),0)","v":0},"-Medi-Cal DMC",{"$f":"SUMIF('Provider Charges'!$R$2:$S$501,D37,'Provider Charges'!$S$2:$S$501)","v":0},"-OHC",{"$f":"SUMIF('Provider Charges'!$R$2:$S$501,F37,'Provider Charges'!$S$2:$S$501)","v":0},"-County Billable SUD",{"$f":"IF(C37>0,C37-E37-G37,SUMIF('Provider Charges'!$R$1:$S$501,H37,'Provider Charges'!$S$1:$S$501))","v":0}]
[null,{"$f":"IFERROR((VLOOKUP(A38,'Program Invoicing'!P:R,3,0)),\" \")","v":" "},{"$f":"IFERROR((IF(A38=0,0,SUMIF('Program Invoicing'!$P$2:$Q$297,A38,'Program Invoicing'!$Q$2:$Q$297))),0)","v":0},"-Medi-Cal DMC",{"$f":"SUMIF('Provider Charges'!$R$2:$S$501,D38,'Provider Charges'!$S$2:$S$501)","v":0},"-OHC",{"$f":"SUMIF('Provider Charges'!$R$2:$S$501,F38,'Provider Charges'!$S$2:$S$501)","v":0},"-County Billable SUD",{"$f":"IF(C38>0,C38-E38-G38,SUMIF('Provider Charges'!$R$1:$S$501,H38,'Provider Charges'!$S$1:$S$501))","v":0}]
[null,{"$f":"IFERROR((VLOOKUP(A39,'Program Invoicing'!P:R,3,0)),\" \")","v":" "},{"$f":"IFERROR((IF(A39=0,0,SUMIF('Program Invoicing'!$P$2:$Q$297,A39,'Program Invoicing'!$Q$2:$Q$297))),0)","v":0},"-Medi-Cal DMC",{"$f":"SUMIF('Provider Charges'!$R$2:$S$501,D39,'Provider Charges'!$S$2:$S$501)","v":0},"-OHC",{"$f":"SUMIF('Provider Charges'!$R$2:$S$501,F39,'Provider Charges'!$S$2:$S$501)","v":0},"-County Billable SUD",{"$f":"IF(C39>0,C39-E39-G39,SUMIF('Provider Charges'!$R$1:$S$501,H39,'Provider Charges'!$S$1:$S$501))","v":0}]
[null,{"$f":"IFERROR((VLOOKUP(A40,'Program Invoicing'!P:R,3,0)),\" \")","v":" "},{"$f":"IFERROR((IF(A40=0,0,SUMIF('Program Invoicing'!$P$2:$Q$297,A40,'Program Invoicing'!$Q$2:$Q$297))),0)","v":0},"-Medi-Cal DMC",{"$f":"SUMIF('Provider Charges'!$R$2:$S$501,D40,'Provider Charges'!$S$2:$S$501)","v":0},"-OHC",{"$f":"SUMIF('Provider Charges'!$R$2:$S$501,F40,'Provider Charges'!$S$2:$S$501)","v":0},"-County Billable SUD",{"$f":"IF(C40>0,C40-E40-G40,SUMIF('Provider Charges'!$R$1:$S$501,H40,'Provider Charges'!$S$1:$S$501))","v":0}]
[null,{"$f":"IFERROR((VLOOKUP(A41,'Program Invoicing'!P:R,3,0)),\" \")","v":" "},{"$f":"IFERROR((IF(A41=0,0,SUMIF('Program Invoicing'!$P$2:$Q$297,A41,'Program Invoicing'!$Q$2:$Q$297))),0)","v":0},"-Medi-Cal DMC",{"$f":"SUMIF('Provider Charges'!$R$2:$S$501,D41,'Provider Charges'!$S$2:$S$501)","v":0},"-OHC",{"$f":"SUMIF('Provider Charges'!$R$2:$S$501,F41,'Provider Charges'!$S$2:$S$501)","v":0},"-County Billable SUD",{"$f":"IF(C41>0,C41-E41-G41,SUMIF('Provider Charges'!$R$1:$S$501,H41,'Provider Charges'!$S$1:$S$501))","v":0}]
[null,{"$f":"IFERROR((VLOOKUP(A42,'Program Invoicing'!P:R,3,0)),\" \")","v":" "},{"$f":"IFERROR((IF(A42=0,0,SUMIF('Program Invoicing'!$P$2:$Q$297,A42,'Program Invoicing'!$Q$2:$Q$297))),0)","v":0},"-Medi-Cal DMC",{"$f":"SUMIF('Provider Charges'!$R$2:$S$501,D42,'Provider Charges'!$S$2:$S$501)","v":0},"-OHC",{"$f":"SUMIF('Provider Charges'!$R$2:$S$501,F42,'Provider Charges'!$S$2:$S$501)","v":0},"-County Billable SUD",{"$f":"IF(C42>0,C42-E42-G42,SUMIF('Provider Charges'!$R$1:$S$501,H42,'Provider Charges'!$S$1:$S$501))","v":0}]
[null,{"$f":"IFERROR((VLOOKUP(A43,'Program Invoicing'!P:R,3,0)),\" \")","v":" "},{"$f":"IFERROR((IF(A43=0,0,SUMIF('Program Invoicing'!$P$2:$Q$297,A43,'Program Invoicing'!$Q$2:$Q$297))),0)","v":0},"-Medi-Cal DMC",{"$f":"SUMIF('Provider Charges'!$R$2:$S$501,D43,'Provider Charges'!$S$2:$S$501)","v":0},"-OHC",{"$f":"SUMIF('Provider Charges'!$R$2:$S$501,F43,'Provider Charges'!$S$2:$S$501)","v":0},"-County Billable SUD",{"$f":"IF(C43>0,C43-E43-G43,SUMIF('Provider Charges'!$R$1:$S$501,H43,'Provider Charges'!$S$1:$S$501))","v":0}]
[null,{"$f":"IFERROR((VLOOKUP(A44,'Program Invoicing'!P:R,3,0)),\" \")","v":" "},{"$f":"IFERROR((IF(A44=0,0,SUMIF('Program Invoicing'!$P$2:$Q$297,A44,'Program Invoicing'!$Q$2:$Q$297))),0)","v":0},"-Medi-Cal DMC",{"$f":"SUMIF('Provider Charges'!$R$2:$S$501,D44,'Provider Charges'!$S$2:$S$501)","v":0},"-OHC",{"$f":"SUMIF('Provider Charges'!$R$2:$S$501,F44,'Provider Charges'!$S$2:$S$501)","v":0},"-County Billable SUD",{"$f":"IF(C44>0,C44-E44-G44,SUMIF('Provider Charges'!$R$1:$S$501,H44,'Provider Charges'!$S$1:$S$501))","v":0}]
[null,{"$f":"IFERROR((VLOOKUP(A45,'Program Invoicing'!P:R,3,0)),\" \")","v":" "},{"$f":"IFERROR((IF(A45=0,0,SUMIF('Program Invoicing'!$P$2:$Q$297,A45,'Program Invoicing'!$Q$2:$Q$297))),0)","v":0},"-Medi-Cal DMC",{"$f":"SUMIF('Provider Charges'!$R$2:$S$501,D45,'Provider Charges'!$S$2:$S$501)","v":0},"-OHC",{"$f":"SUMIF('Provider Charges'!$R$2:$S$501,F45,'Provider Charges'!$S$2:$S$501)","v":0},"-County Billable SUD",{"$f":"IF(C45>0,C45-E45-G45,SUMIF('Provider Charges'!$R$1:$S$501,H45,'Provider Charges'!$S$1:$S$501))","v":0}]
[null,{"$f":"IFERROR((VLOOKUP(A46,'Program Invoicing'!P:R,3,0)),\" \")","v":" "},{"$f":"IFERROR((IF(A46=0,0,SUMIF('Program Invoicing'!$P$2:$Q$297,A46,'Program Invoicing'!$Q$2:$Q$297))),0)","v":0},"-Medi-Cal DMC",{"$f":"SUMIF('Provider Charges'!$R$2:$S$501,D46,'Provider Charges'!$S$2:$S$501)","v":0},"-OHC",{"$f":"SUMIF('Provider Charges'!$R$2:$S$501,F46,'Provider Charges'!$S$2:$S$501)","v":0},"-County Billable SUD",{"$f":"IF(C46>0,C46-E46-G46,SUMIF('Provider Charges'!$R$1:$S$501,H46,'Provider Charges'!$S$1:$S$501))","v":0}]
[null,{"$f":"IFERROR((VLOOKUP(A47,'Program Invoicing'!P:R,3,0)),\" \")","v":" "},{"$f":"IFERROR((IF(A47=0,0,SUMIF('Program Invoicing'!$P$2:$Q$297,A47,'Program Invoicing'!$Q$2:$Q$297))),0)","v":0},"-Medi-Cal DMC",{"$f":"SUMIF('Provider Charges'!$R$2:$S$501,D47,'Provider Charges'!$S$2:$S$501)","v":0},"-OHC",{"$f":"SUMIF('Provider Charges'!$R$2:$S$501,F47,'Provider Charges'!$S$2:$S$501)","v":0},"-County Billable SUD",{"$f":"IF(C47>0,C47-E47-G47,SUMIF('Provider Charges'!$R$1:$S$501,H47,'Provider Charges'!$S$1:$S$501))","v":0}]
[null,{"$f":"IFERROR((VLOOKUP(A48,'Program Invoicing'!P:R,3,0)),\" \")","v":" "},{"$f":"IFERROR((IF(A48=0,0,SUMIF('Program Invoicing'!$P$2:$Q$297,A48,'Program Invoicing'!$Q$2:$Q$297))),0)","v":0},"-Medi-Cal DMC",{"$f":"SUMIF('Provider Charges'!$R$2:$S$501,D48,'Provider Charges'!$S$2:$S$501)","v":0},"-OHC",{"$f":"SUMIF('Provider Charges'!$R$2:$S$501,F48,'Provider Charges'!$S$2:$S$501)","v":0},"-County Billable SUD",{"$f":"IF(C48>0,C48-E48-G48,SUMIF('Provider Charges'!$R$1:$S$501,H48,'Provider Charges'!$S$1:$S$501))","v":0}]
[null,{"$f":"IFERROR((VLOOKUP(A49,'Program Invoicing'!P:R,3,0)),\" \")","v":" "},{"$f":"IFERROR((IF(A49=0,0,SUMIF('Program Invoicing'!$P$2:$Q$297,A49,'Program Invoicing'!$Q$2:$Q$297))),0)","v":0},{"$f":"A49&\"-\"&\"Medi-Cal DMC\"","v":"-Medi-Cal DMC"},{"$f":"SUMIF('Provider Charges'!$R$2:$S$501,D49,'Provider Charges'!$S$2:$S$501)","v":0},"-OHC",{"$f":"SUMIF('Provider Charges'!$R$2:$S$501,F49,'Provider Charges'!$S$2:$S$501)","v":0},"-County Billable SUD",{"$f":"IF(C49>0,C49-E49-G49,SUMIF('Provider Charges'!$R$1:$S$501,H49,'Provider Charges'!$S$1:$S$501))","v":0}]
[null,{"$f":"IFERROR((VLOOKUP(A50,'Program Invoicing'!P:R,3,0)),\" \")","v":" "},{"$f":"IFERROR((IF(A50=0,0,SUMIF('Program Invoicing'!$P$2:$Q$297,A50,'Program Invoicing'!$Q$2:$Q$297))),0)","v":0},"-Medi-Cal DMC",{"$f":"SUMIF('Provider Charges'!$R$2:$S$501,D50,'Provider Charges'!$S$2:$S$501)","v":0},"-OHC",{"$f":"SUMIF('Provider Charges'!$R$2:$S$501,F50,'Provider Charges'!$S$2:$S$501)","v":0},"-County Billable SUD",{"$f":"IF(C50>0,C50-E50-G50,SUMIF('Provider Charges'!$R$1:$S$501,H50,'Provider Charges'!$S$1:$S$501))","v":0}]
[null,{"$f":"IFERROR((VLOOKUP(A51,'Program Invoicing'!P:R,3,0)),\" \")","v":" "},{"$f":"IFERROR((IF(A51=0,0,SUMIF('Program Invoicing'!$P$2:$Q$297,A51,'Program Invoicing'!$Q$2:$Q$297))),0)","v":0},"-Medi-Cal DMC",{"$f":"SUMIF('Provider Charges'!$R$2:$S$501,D51,'Provider Charges'!$S$2:$S$501)","v":0},"-OHC",{"$f":"SUMIF('Provider Charges'!$R$2:$S$501,F51,'Provider Charges'!$S$2:$S$501)","v":0},"-County Billable SUD",{"$f":"IF(C51>0,C51-E51-G51,SUMIF('Provider Charges'!$R$1:$S$501,H51,'Provider Charges'!$S$1:$S$501))","v":0}]
[null,{"$f":"IFERROR((VLOOKUP(A52,'Program Invoicing'!P:R,3,0)),\" \")","v":" "},{"$f":"IFERROR((IF(A52=0,0,SUMIF('Program Invoicing'!$P$2:$Q$297,A52,'Program Invoicing'!$Q$2:$Q$297))),0)","v":0},"-Medi-Cal DMC",{"$f":"SUMIF('Provider Charges'!$R$2:$S$501,D52,'Provider Charges'!$S$2:$S$501)","v":0},"-OHC",{"$f":"SUMIF('Provider Charges'!$R$2:$S$501,F52,'Provider Charges'!$S$2:$S$501)","v":0},"-County Billable SUD",{"$f":"IF(C52>0,C52-E52-G52,SUMIF('Provider Charges'!$R$1:$S$501,H52,'Provider Charges'!$S$1:$S$501))","v":0}]
[null,{"$f":"IFERROR((VLOOKUP(A53,'Program Invoicing'!P:R,3,0)),\" \")","v":" "},{"$f":"IFERROR((IF(A53=0,0,SUMIF('Program Invoicing'!$P$2:$Q$297,A53,'Program Invoicing'!$Q$2:$Q$297))),0)","v":0},"-Medi-Cal DMC",{"$f":"SUMIF('Provider Charges'!$R$2:$S$501,D53,'Provider Charges'!$S$2:$S$501)","v":0},"-OHC",{"$f":"SUMIF('Provider Charges'!$R$2:$S$501,F53,'Provider Charges'!$S$2:$S$501)","v":0},"-County Billable SUD",{"$f":"IF(C53>0,C53-E53-G53,SUMIF('Provider Charges'!$R$1:$S$501,H53,'Provider Charges'!$S$1:$S$501))","v":0}]
[null,{"$f":"IFERROR((VLOOKUP(A54,'Program Invoicing'!P:R,3,0)),\" \")","v":" "},{"$f":"IFERROR((IF(A54=0,0,SUMIF('Program Invoicing'!$P$2:$Q$297,A54,'Program Invoicing'!$Q$2:$Q$297))),0)","v":0},"-Medi-Cal DMC",{"$f":"SUMIF('Provider Charges'!$R$2:$S$501,D54,'Provider Charges'!$S$2:$S$501)","v":0},"-OHC",{"$f":"SUMIF('Provider Charges'!$R$2:$S$501,F54,'Provider Charges'!$S$2:$S$501)","v":0},"-County Billable SUD",{"$f":"IF(C54>0,C54-E54-G54,SUMIF('Provider Charges'!$R$1:$S$501,H54,'Provider Charges'!$S$1:$S$501))","v":0}]
[null,{"$f":"IFERROR((VLOOKUP(A55,'Program Invoicing'!P:R,3,0)),\" \")","v":" "},{"$f":"IFERROR((IF(A55=0,0,SUMIF('Program Invoicing'!$P$2:$Q$297,A55,'Program Invoicing'!$Q$2:$Q$297))),0)","v":0},"-Medi-Cal DMC",{"$f":"SUMIF('Provider Charges'!$R$2:$S$501,D55,'Provider Charges'!$S$2:$S$501)","v":0},"-OHC",{"$f":"SUMIF('Provider Charges'!$R$2:$S$501,F55,'Provider Charges'!$S$2:$S$501)","v":0},"-County Billable SUD",{"$f":"IF(C55>0,C55-E55-G55,SUMIF('Provider Charges'!$R$1:$S$501,H55,'Provider Charges'!$S$1:$S$501))","v":0}]
[null,{"$f":"IFERROR((VLOOKUP(A56,'Program Invoicing'!P:R,3,0)),\" \")","v":" "},{"$f":"IFERROR((IF(A56=0,0,SUMIF('Program Invoicing'!$P$2:$Q$297,A56,'Program Invoicing'!$Q$2:$Q$297))),0)","v":0},"-Medi-Cal DMC",{"$f":"SUMIF('Provider Charges'!$R$2:$S$501,D56,'Provider Charges'!$S$2:$S$501)","v":0},"-OHC",{"$f":"SUMIF('Provider Charges'!$R$2:$S$501,F56,'Provider Charges'!$S$2:$S$501)","v":0},"-County Billable SUD",{"$f":"IF(C56>0,C56-E56-G56,SUMIF('Provider Charges'!$R$1:$S$501,H56,'Provider Charges'!$S$1:$S$501))","v":0}]
[null,{"$f":"IFERROR((VLOOKUP(A57,'Program Invoicing'!P:R,3,0)),\" \")","v":" "},{"$f":"IFERROR((IF(A57=0,0,SUMIF('Program Invoicing'!$P$2:$Q$297,A57,'Program Invoicing'!$Q$2:$Q$297))),0)","v":0},"-Medi-Cal DMC",{"$f":"SUMIF('Provider Charges'!$R$2:$S$501,D57,'Provider Charges'!$S$2:$S$501)","v":0},"-OHC",{"$f":"SUMIF('Provider Charges'!$R$2:$S$501,F57,'Provider Charges'!$S$2:$S$501)","v":0},"-County Billable SUD",{"$f":"IF(C57>0,C57-E57-G57,SUMIF('Provider Charges'!$R$1:$S$501,H57,'Provider Charges'!$S$1:$S$501))","v":0}]
[null,{"$f":"IFERROR((VLOOKUP(A58,'Program Invoicing'!P:R,3,0)),\" \")","v":" "},{"$f":"IFERROR((IF(A58=0,0,SUMIF('Program Invoicing'!$P$2:$Q$297,A58,'Program Invoicing'!$Q$2:$Q$297))),0)","v":0},"-Medi-Cal DMC",{"$f":"SUMIF('Provider Charges'!$R$2:$S$501,D58,'Provider Charges'!$S$2:$S$501)","v":0},"-OHC",{"$f":"SUMIF('Provider Charges'!$R$2:$S$501,F58,'Provider Charges'!$S$2:$S$501)","v":0},"-County Billable SUD",{"$f":"IF(C58>0,C58-E58-G58,SUMIF('Provider Charges'!$R$1:$S$501,H58,'Provider Charges'!$S$1:$S$501))","v":0}]
[null,{"$f":"IFERROR((VLOOKUP(A59,'Program Invoicing'!P:R,3,0)),\" \")","v":" "},{"$f":"IFERROR((IF(A59=0,0,SUMIF('Program Invoicing'!$P$2:$Q$297,A59,'Program Invoicing'!$Q$2:$Q$297))),0)","v":0},"-Medi-Cal DMC",{"$f":"SUMIF('Provider Charges'!$R$2:$S$501,D59,'Provider Charges'!$S$2:$S$501)","v":0},"-OHC",{"$f":"SUMIF('Provider Charges'!$R$2:$S$501,F59,'Provider Charges'!$S$2:$S$501)","v":0},"-County Billable SUD",{"$f":"IF(C59>0,C59-E59-G59,SUMIF('Provider Charges'!$R$1:$S$501,H59,'Provider Charges'!$S$1:$S$501))","v":0}]
[null,{"$f":"IFERROR((VLOOKUP(A60,'Program Invoicing'!P:R,3,0)),\" \")","v":" "},{"$f":"IFERROR((IF(A60=0,0,SUMIF('Program Invoicing'!$P$2:$Q$297,A60,'Program Invoicing'!$Q$2:$Q$297))),0)","v":0},"-Medi-Cal DMC",{"$f":"SUMIF('Provider Charges'!$R$2:$S$501,D60,'Provider Charges'!$S$2:$S$501)","v":0},"-OHC",{"$f":"SUMIF('Provider Charges'!$R$2:$S$501,F60,'Provider Charges'!$S$2:$S$501)","v":0},"-County Billable SUD",{"$f":"IF(C60>0,C60-E60-G60,SUMIF('Provider Charges'!$R$1:$S$501,H60,'Provider Charges'!$S$1:$S$501))","v":0}]
[null,{"$f":"IFERROR((VLOOKUP(A61,'Program Invoicing'!P:R,3,0)),\" \")","v":" "},{"$f":"IFERROR((IF(A61=0,0,SUMIF('Program Invoicing'!$P$2:$Q$297,A61,'Program Invoicing'!$Q$2:$Q$297))),0)","v":0},"-Medi-Cal DMC",{"$f":"SUMIF('Provider Charges'!$R$2:$S$501,D61,'Provider Charges'!$S$2:$S$501)","v":0},"-OHC",{"$f":"SUMIF('Provider Charges'!$R$2:$S$501,F61,'Provider Charges'!$S$2:$S$501)","v":0},"-County Billable SUD",{"$f":"IF(C61>0,C61-E61-G61,SUMIF('Provider Charges'!$R$1:$S$501,H61,'Provider Charges'!$S$1:$S$501))","v":0}]
["Total",null,{"$f":"SUBTOTAL(9,C2:C61)","v":0},null,{"$f":"SUBTOTAL(9,E2:E61)","v":0},{"$error":"#N/A"},0,null,0]

{"sheet":"Sheet6","index":4,"n_rows":696,"n_cols":1,"rows_kept":696,"cut":false,"hidden":true,"merged":[]}
[]
[{"$f":"_xlfn.VSTACK('Program Invoicing'!P2:P397,'Provider Charges'!Q2:Q300)","v":"-0"}]
[0]
[0]
[0]
[0]
[0]
[0]
[0]
[0]
[0]
[0]
[0]
[0]
[0]
[0]
[0]
[0]
[0]
[0]
[0]
[0]
[0]
[0]
[0]
[0]
[0]
[0]
[0]
[0]
[0]
[0]
[0]
[0]
[0]
[0]
[0]
[0]
[0]
[0]
[0]
[0]
[0]
[0]
[0]
[0]
[0]
[0]
[0]
[0]
[0]
[0]
[0]
[0]
[0]
[0]
[0]
[0]
[0]
[0]
[0]
[0]
[0]
[0]
[0]
[0]
[0]
[0]
[0]
[0]
[0]
[0]
[0]
[0]
[0]
[0]
[0]
[0]
[0]
[0]
[0]
[0]
[0]
[0]
[0]
[0]
[0]
[0]
[0]
[0]
[0]
[0]
[0]
[0]
[0]
[0]
[0]
[0]
[0]
[0]
[0]
[0]
[0]
[0]
[0]
[0]
[0]
[0]
[0]
[0]
[0]
[0]
[0]
[0]
[0]
[0]
[0]
[0]
[0]
[0]
[0]
[0]
[0]
[0]
[0]
[0]
[0]
[0]
[0]
[0]
[0]
[0]
[0]
[0]
[0]
[0]
[0]
[0]
[0]
[0]
[0]
[0]
[0]
[0]
[0]
[0]
[0]
[0]
[0]
[0]
[0]
[0]
[0]
[0]
[0]
[0]
[0]
[0]
[0]
[0]
[0]
[0]
[0]
[0]
[0]
[0]
[0]
[0]
[0]
[0]
[0]
[0]
[0]
[0]
[0]
[0]
[0]
[0]
[0]
[0]
[0]
[0]
[0]
[0]
[0]
[0]
[0]
[0]
[0]
[0]
[0]
[0]
[0]
[0]
[0]
[0]
[0]
[0]
[0]
[0]
[0]
[0]
[0]
[0]
[0]
[0]
[0]
[0]
[0]
[0]
[0]
[0]
[0]
[0]
[0]
[0]
[0]
[0]
[0]
[0]
[0]
[0]
[0]
[0]
[0]
[0]
[0]
[0]
[0]
[0]
[0]
[0]
[0]
[0]
[0]
[0]
[0]
[0]
[0]
[0]
[0]
[0]
[0]
[0]
[0]
[0]
[0]
[0]
[0]
[0]
[0]
[0]
[0]
[0]
[0]
[0]
[0]
[0]
[0]
[0]
[0]
[0]
[0]
[0]
[0]
[0]
[0]
[0]
[0]
[0]
[0]
[0]
[0]
[0]
[0]
[0]
[0]
[0]
[0]
[0]
[0]
[0]
[0]
[0]
[0]
[0]
[0]
[0]
[0]
[0]
[0]
[0]
[0]
[0]
[0]
[0]
[0]
[0]
[0]
[0]
[0]
[0]
[0]
[0]
[0]
[0]
[0]
[0]
[0]
[0]
[0]
[0]
[0]
[0]
[0]
[0]
[0]
[0]
[0]
[0]
[0]
[0]
[0]
[0]
[0]
[0]
[0]
[0]
[0]
[0]
[0]
[0]
[0]
[0]
[0]
[0]
[0]
[0]
[0]
[0]
[0]
[0]
[0]
[0]
[0]
[0]
[0]
[0]
[0]
[0]
[0]
[0]
[0]
[0]
[0]
[0]
[0]
[0]
[0]
[0]
[0]
[0]
[0]
[0]
[0]
[0]
[0]
[0]
[0]
[0]
[0]
[0]
[0]
[0]
[0]
[0]
[0]
[0]
[0]
[0]
[0]
[0]
[0]
[0]
[0]
[0]
[0]
[0]
[0]
[0]
[0]
[0]
[0]
[0]
[0]
[0]
[0]
[{"$error":"#N/A"}]
[0]
[0]
[0]
[0]
[0]
[0]
[0]
[0]
[0]
[0]
[0]
[0]
[0]
[0]
[0]
[0]
[0]
[0]
[0]
[0]
[0]
[0]
[0]
[0]
[0]
[0]
[0]
[0]
[0]
[0]
[0]
[0]
[0]
[0]
[0]
[0]
[0]
[0]
[0]
[0]
[0]
[0]
[0]
[0]
[0]
[0]
[0]
[0]
[0]
[0]
[0]
[0]
[0]
[0]
[0]
[0]
[0]
[0]
[0]
[0]
[0]
[0]
[0]
[0]
[0]
[0]
[0]
[0]
[0]
[0]
[0]
[0]
[0]
[0]
[0]
[0]
[0]
[0]
[0]
[0]
[0]
[0]
[0]
[0]
[0]
[0]
[0]
[0]
[0]
[0]
[0]
[0]
[0]
[0]
[0]
[0]
[0]
[0]
[0]
[0]
[0]
[0]
[0]
[0]
[0]
[0]
[0]
[0]
[0]
[0]
[0]
[0]
[0]
[0]
[0]
[0]
[0]
[0]
[0]
[0]
[0]
[0]
[0]
[0]
[0]
[0]
[0]
[0]
[0]
[0]
[0]
[0]
[0]
[0]
[0]
[0]
[0]
[0]
[0]
[0]
[0]
[0]
[0]
[0]
[0]
[0]
[0]
[0]
[0]
[0]
[0]
[0]
[0]
[0]
[0]
[0]
[0]
[0]
[0]
[0]
[0]
[0]
[0]
[0]
[0]
[0]
[0]
[0]
[0]
[0]
[0]
[0]
[0]
[0]
[0]
[0]
[0]
[0]
[0]
[0]
[0]
[0]
[0]
[0]
[0]
[0]
[0]
[0]
[0]
[0]
[0]
[0]
[0]
[0]
[0]
[0]
[0]
[0]
[0]
[0]
[0]
[0]
[0]
[0]
[0]
[0]
[0]
[0]
[0]
[0]
[0]
[0]
[0]
[0]
[0]
[0]
[0]
[0]
[0]
[0]
[0]
[0]
[0]
[0]
[0]
[0]
[0]
[0]
[0]
[0]
[0]
[0]
[0]
[0]
[0]
[0]
[0]
[0]
[0]
[0]
[0]
[0]
[0]
[0]
[0]
[0]
[0]
[0]
[0]
[0]
[0]
[0]
[0]
[0]
[0]
[0]
[0]
[0]
[0]
[0]
[0]
[0]
[0]
[0]
[0]
[0]
[0]
[0]
[0]
[0]
[0]
[0]
[0]
[0]
[0]
[0]
[0]
[0]
[0]
[0]
[0]
[0]
[0]
[0]
[0]
[0]
[0]
[0]
[0]
[0]
[0]
[0]
[0]
[0]
[0]
[0]
[0]
[0]

{"sheet":"Sheet4","index":5,"n_rows":52,"n_cols":7,"rows_kept":52,"cut":false,"hidden":true,"merged":[]}
[null,"Program Name","Bed Day",null,null,"Program Name"]
[null,"MITE New Connections 3.1",3.1,null,null,"MITE 3.1 New Connections",3.1]
[null,"SD Freedom Ranch Inc 3.1",3.1,null,null,"Freedom Ranch 3.1",3.1]
[null,"The Fellowship Center 3.1",3.1,null,null,"The Fellowship Ctr 3.1",3.1]
[null,"Alpha Project Casa Raphael 3.1",3.1,null,null,"Alpha Proj 3.1 Casa Raphael",3.1]
[null,"Interfaith Escondido Community Sobering 3.1",3.1,null,null,"Interfaith 3.1 Comm Sober ESC",3.1]
[null,"CRASH Golden Hill House 3.1",3.1,null,null,"CRASH 3.1 Golden Hill Hse",3.1]
[null,"CRASH Golden Hill House II 3.1",3.1,null,null,"CRASH 3.1 Golden Hill Hse II",3.1]
[null,"CRASH Short Term I 3.1",3.1,null,null,"CRASH 3.1 Short Term I",3.1]
[null,"Crossroads 3.1",3.1,null,null,"Crossroads 3.1",3.1]
[null,"MAAC Project Casa de Milagros 3.1",3.1,null,null,"MAAC 3.1 Casa de Milagros",3.1]
[null,"MAAC Project Nosotros 3.1",3.1,null,null,"MAAC 3.1 Nosotros",3.1]
[null,"Pathfinders Cedar House 3.1",3.1,null,null,"Pathfinders 3.1 Cedar Hse",3.1]
[null,"Pathfinders Dale House 3.1",3.1,null,null,"Pathfinders 3.1 Dale Hse",3.1]
[null,"Stepping Stone SD Residential 3.1",3.1,null,null,"Stepping Stone 3.1 SD",3.1]
[null,"The Way Back 3.1",3.1,null,null,"The Way Back 3.1",3.1]
[null,"Tradition One 3.1",3.1,null,null,"Tradition One 3.1",3.1]
[null,"Turning Point Home 3.1",3.1,null,null,"Turning Pt Home 3.1",3.1]
[null,"HealthRIGHT 360 Serenity Center 3.1",3.1,null,null,"HealthRight 360 3.1 Serenity Ctr",3.1]
[null,"MITE Kiva Perinatal Residential 3.1",3.1,null,null,"MITE 3.1 Kiva Peri",3.1]
[null,"TURN Family Recovery Center 3.1",3.1,null,null,"TURN 3.1 FRC",3.1]
[null,"Twelfth Step House SD Heartland 3.1",3.1,null,null,"Twelfth Step Hse 3.1 Heartland",3.1]
[null,"House of Metamorphosis 3.1",3.1,null,null,"HOM 3.1",3.1]
[null,"MITE New Connections 3.5",3.5,null,null,"MITE 3.5 New Connections",3.5]
[null,"SD Freedom Ranch Inc 3.5",3.5,null,null,"Freedom Ranch 3.5",3.5]
[null,"The Fellowship Center 3.5",3.5,null,null,"The Fellowship Ctr 3.5",3.5]
[null,"Alpha Project Casa Raphael 3.5",3.5,null,null,"Alpha Proj 3.5 Casa Raphael",3.5]
[null,"Interfaith Escondido Community Sobering 3.5",3.5,null,null,"Interfaith 3.5 Comm Sober ESC",3.5]
[null,"CRASH Short Term I 3.5",3.5,null,null,"CRASH 3.5 Golden Hill Hse",3.5]
[null,"Crossroads 3.5",3.5,null,null,"CRASH 3.5 Golden Hill Hse II",3.5]
[null,"MAAC Project Casa de Milagros 3.5",3.5,null,null,"CRASH 3.5 Short Term I",3.5]
[null,"MAAC Project Nosotros 3.5",3.5,null,null,"Crossroads 3.5",3.5]
[null,"Pathfinders Cedar House 3.5",3.5,null,null,"MAAC 3.5 Casa de Milagros",3.5]
[null,"Stepping Stone SD Residential 3.5",3.5,null,null,"MAAC 3.5 Nosotros",3.5]
[null,"The Way Back 3.5",3.5,null,null,"Pathfinders 3.5 Cedar Hse",3.5]
[null,"Turning Point Home 3.5",3.5,null,null,"Stepping Stone 3.5 SD",3.5]
[null,"HealthRIGHT 360 Serenity Center 3.5",3.5,null,null,"The Way Back 3.5",3.5]
[null,"MITE Kiva Perinatal Residential 3.5",3.5,null,null,"Turning Pt Home 3.5",3.5]
[null,"TURN Family Recovery Center 3.5",3.5,null,null,"HealthRight 360 3.5 Serenity Ctr",3.5]
[null,"Twelfth Step House SD Heartland 3.5",3.5,null,null,"MITE 3.5 Kiva Peri",3.5]
[null,"New Entra Casa 3.5",3.5,null,null,"TURN 3.5 FRC",3.5]
[null,"MITE East County Detox 3.2 WM",3.2,null,null,"Twelfth Step Hse 3.5 Heartland",3.5]
[null,"SD Freedom Ranch Inc 3.2 WM",3.2,null,null,"New Entra Casa 3.5",3.5]
[null,"The Fellowship Center 3.2 WM",3.2,null,null,"MITE 3.2 WM Cnty Detox E",3.2]
[null,"Interfaith Escondido Community Sobering 3.2 WM",3.2,null,null,"Freedom Ranch 3.2 WM",3.2]
[null,"The Way Back 3.2 WM",3.2,null,null,"The Fellowship Ctr 3.2 WM",3.2]
[null,"HealthRIGHT 360 Serenity Center 3.2 WM",3.2,null,null,"Interfaith 3.2 WM Comm Sober ESC",3.2]
[null,"MITE Kiva Perinatal Residential 3.2 WM",3.2,null,null,"The Way Back 3.2 WM",3.2]
[null,"TURN Family Recovery Center 3.2 WM",3.2,null,null,"HealthRight 360 3.2 WM Serenity Ctr",3.2]
[null,"SD Freedom Ranch Inc 3.3",3.3,null,null,"MITE 3.2 WM Kiva Peri",3.2]
[null,null,null,null,null,"TURN 3.2 WM FRC",3.2]
[null,null,null,null,null,"Freedom Ranch 3.3",3.3]

{"sheet":"Data Validation","index":6,"n_rows":324,"n_cols":19,"rows_kept":324,"cut":false,"hidden":true,"merged":[]}
["Credential/Degree Name/Modality (From Smartcare)","Credential (From Invoice Template)",null,"DegreeName (From Smartcare)","Credential (From Invoice Template)",null,"Program Name","Bed Day/AWM",null,"Program Name","Bed Day",null,"Plan","Plan Name",null,"Program Name","CalOMSProviderId",null,"Program Name"]
[" PT Psychiatric Technician","Licensed Psychiatric Technician",null,"Admin Use Only - Bed Days","Bed Days",null,"MITE New Connections 3.1",3.1,null,"MITE 3.1 New Connections",3.1,null,"Medi-Cal MH","Medi-Cal MH",null,"Alpha Project Casa Raphael 3.1",373769,null,"Alpha Proj 3.1 Casa Raphael"]
[" Certified Peer Specialist, MHRS Mental Health Rehabilitation Specialist","Peer Support Specialist",null,"Admin Use Only - Bed Days, LVN Licensed Vocational Nurse, NPI","Bed Days",null,"SD Freedom Ranch Inc 3.1",3.1,null,"Freedom Ranch 3.1",3.1,null,"Community Health Group","OHC",null,"Alpha Project Casa Raphael 3.5",373769,null,"Alpha Proj 3.5 Casa Raphael"]
[" NP Nurse Practitioner Clinical Trainee","Nurse Practitioner",null,"Admin Use Only - Bed Days, MD Medical Doctor, NPI","Bed Days",null,"The Fellowship Center 3.1",3.1,null,"The Fellowship Ctr 3.1",3.1,null,"Molina Healthcare","OHC",null,"CRASH Short Term I 3.1",378766,null,"CRASH 3.1 Short Term I"]
["Therapeutic Foster Care","Therapeutic Foster Care",null,"Admin Use Only - Bed Days, MHRS Mental Health Rehabilitation Specialist, NPI","Bed Days",null,"Alpha Project Casa Raphael 3.1",3.1,null,"Alpha Proj 3.1 Casa Raphael",3.1,null,"MCP - Community Health Group","OHC",null,"CRASH Golden Hill House II 3.1",373791,null,"CRASH 3.1 Golden Hill Hse II"]
["Crisis Residential Day","Crisis Residential Day",null,"Admin Use Only - Bed Days, NPI","Bed Days",null,"Interfaith Escondido Community Sobering 3.1",3.1,null,"Interfaith 3.1 Comm Sober ESC",3.1,null,"Blue Cross","OHC",null,"CRASH Golden Hill House 3.1",378764,null,"CRASH 3.1 Golden Hill Hse"]
[" Master's Degree LPHA Clinical Trainee, Registered AOD Counselor","LPHA (MFT  LCSW  LPCC)/Intern or\nWaivered LPHA (MFT  LCSW  LPCC)",null,"Admin Use Only - Bed Days, NPI, Other Qualified Provider","Bed Days",null,"CRASH Golden Hill House 3.1",3.1,null,"CRASH 3.1 Golden Hill Hse",3.1,null,"Health Net","OHC",null,"Crossroads 3.1",370001,null,"Crossroads 3.1"]
[" AMFT Associate Marriage and Family Therapist","LPHA (MFT  LCSW  LPCC)/Intern or\nWaivered LPHA (MFT  LCSW  LPCC)",null,"AMFT Associate Marriage and Family Therapist","LPHA (MFT  LCSW  LPCC)/Intern or\nWaivered LPHA (MFT  LCSW  LPCC)",null,"CRASH Golden Hill House II 3.1",3.1,null,"CRASH 3.1 Golden Hill Hse II",3.1,null,"Aetna","OHC",null,"Crossroads 3.5",370001,null,"Crossroads 3.5"]
["Residential Treatment -Substance Use","Bed Days",null,"AMFT Associate Marriage and Family Therapist, NPI","LPHA (MFT  LCSW  LPCC)/Intern or\nWaivered LPHA (MFT  LCSW  LPCC)",null,"CRASH Short Term I 3.1",3.1,null,"CRASH 3.1 Short Term I",3.1,null,"Imperial Health Holdings Grp","OHC",null,"HealthRIGHT 360 Serenity Center 3.1",378650,null,"HealthRight 360 3.1 Serenity Ctr"]
[" Certified AOD Counselor","Alcohol and Drug Counselor",null,"APCC Associate Professional Clinical Counselor","LPHA (MFT  LCSW  LPCC)/Intern or\nWaivered LPHA (MFT  LCSW  LPCC)",null,"Crossroads 3.1",3.1,null,"Crossroads 3.1",3.1,null,"MCP - No plan","OHC",null,"HealthRIGHT 360 Serenity Center 3.5",378650,null,"HealthRight 360 3.5 Serenity Ctr"]
[" Psych Associate/RPS","Psychologist/Pre-licensed Psychologist",null,"APCC Associate Professional Clinical Counselor, NPI","LPHA (MFT  LCSW  LPCC)/Intern or\nWaivered LPHA (MFT  LCSW  LPCC)",null,"MAAC Project Casa de Milagros 3.1",3.1,null,"MAAC 3.1 Casa de Milagros",3.1,null,"MEDICARE PART  A & B","OHC",null,"HealthRIGHT 360 Serenity Center 3.2 WM",378650,null,"HealthRight 360 3.2 WM Serenity Ctr"]
[" Certified Peer Specialist","Peer Support Specialist",null,"ASW Associate Social Worker","LPHA (MFT  LCSW  LPCC)/Intern or\nWaivered LPHA (MFT  LCSW  LPCC)",null,"MAAC Project Nosotros 3.1",3.1,null,"MAAC 3.1 Nosotros",3.1,null,"MEDICARE PART A","OHC",null,"House of Metamorphosis 3.1",378756,null,"HOM 3.1"]
[" Certified AOD Counselor, Registered AOD Counselor","Alcohol and Drug Counselor",null,"ASW Associate Social Worker, NPI","LPHA (MFT  LCSW  LPCC)/Intern or\nWaivered LPHA (MFT  LCSW  LPCC)",null,"Pathfinders Cedar House 3.1",3.1,null,"Pathfinders 3.1 Cedar Hse",3.1,null,"Mercy Physicians Med Grp","OHC",null,"MAAC Project Casa de Milagros 3.1",370050,null,"MAAC 3.1 Casa de Milagros"]
[" MD Medical Doctor","Psychiatrist/ Contracted Psychiatrist/Licensed Physician (MD)",null,"Certified AOD Counselor","Alcohol and Drug Counselor",null,"Pathfinders Dale House 3.1",3.1,null,"Pathfinders 3.1 Dale Hse",3.1,null,"Scripps Health Plan Services","OHC",null,"MAAC Project Nosotros 3.1",370051,null,"MAAC 3.1 Nosotros"]
[" Master's Degree LPHA Clinical Trainee, MHRS Mental Health Rehabilitation Specialist","LPHA (MFT  LCSW  LPCC)/Intern or\nWaivered LPHA (MFT  LCSW  LPCC)",null,"Certified AOD Counselor, LCSW Licensed Clinical Social Worker, NPI","Alcohol and Drug Counselor",null,"Stepping Stone SD Residential 3.1",3.1,null,"Stepping Stone 3.1 SD",3.1,null,"United Health Care","OHC",null,"MAAC Project Nosotros 3.5",370051,null,"MAAC 3.5 Nosotros"]
[" Certified Peer Specialist, Registered AOD Counselor","Alcohol and Drug Counselor",null,"Certified AOD Counselor, NPI","Alcohol and Drug Counselor",null,"The Way Back 3.1",3.1,null,"The Way Back 3.1",3.1,null,"Blue Shield","OHC",null,"TURN Family Recovery Center 3.1",373773,null,"TURN 3.1 FRC"]
["Day Treatment Intensive - Half Day","Day Treatment Intensive - Half Day",null,"Certified AOD Counselor, NPI, Registered AOD Counselor","Alcohol and Drug Counselor",null,"Tradition One 3.1",3.1,null,"Tradition One 3.1",3.1,null,"Cigna Healthcare","OHC",null,"TURN Family Recovery Center 3.5",373773,null,"TURN 3.5 FRC"]
[" MHRS Mental Health Rehabilitation Specialist","Mental Health Rehabilitation Specialist",null,"Certified Peer Specialist","Peer Support Specialist",null,"Turning Point Home 3.1",3.1,null,"Turning Pt Home 3.1",3.1,null,"Kaiser Permanente","OHC",null,"TURN Family Recovery Center 3.2 WM",373773,null,"TURN 3.2 WM FRC"]
[" AMFT Associate Marriage and Family Therapist, MHRS Mental Health Rehabilitation Specialist","LPHA (MFT  LCSW  LPCC)/Intern or\nWaivered LPHA (MFT  LCSW  LPCC)",null,"Certified Peer Specialist, NPI","Peer Support Specialist",null,"HealthRIGHT 360 Serenity Center 3.1",3.1,null,"HealthRight 360 3.1 Serenity Ctr",3.1,null,"MOLINA CAL MEDICONNECT","OHC",null,"MITE Adolescent Group Home East 3.1",373785]
[" ASW Associate Social Worker, LCSW Licensed Clinical Social Worker","LPHA (MFT  LCSW  LPCC)/Intern or\nWaivered LPHA (MFT  LCSW  LPCC)",null,"DEA",null,null,"MITE Kiva Perinatal Residential 3.1",3.1,null,"MITE 3.1 Kiva Peri",3.1,null,"Molina Medicare Advantage","OHC",null,"MITE Adolescent Group Home South 3.1",373787]
[" OT Occupational Therapist","Occupational Therapist",null,"DEA, DO Doctor of Osteopathy, NPI","Psychiatrist/ Contracted Psychiatrist/Licensed Physician (MD)",null,"TURN Family Recovery Center 3.1",3.1,null,"TURN 3.1 FRC",3.1,null,"Optum Behavioral Health","OHC",null,"MITE Adolescent Group Home South 3.5",373787]
["Ambulatory WM - Level 2","Ambulatory WM - Level 2",null,"DEA, MD Medical Doctor, NPI","Psychiatrist/ Contracted Psychiatrist/Licensed Physician (MD)",null,"Twelfth Step House SD Heartland 3.1",3.1,null,"Twelfth Step Hse 3.1 Heartland",3.1,null,"Blue Shield Medicare Advantage","OHC",null,"MITE East County Detox 3.2 WM",378773,null,"MITE 3.2 WM Cnty Detox E"]
["Day Treatment Intensive - Full Day","Day Treatment Intensive - Full Day",null,"DEA, NP Nurse Practitioner","Nurse Practitioner",null,"House of Metamorphosis 3.1",3.1,null,"HOM 3.1",3.1,null,"TriCare West Region/PGBA","OHC",null,"MITE Kiva Perinatal Residential 3.1",378773,null,"MITE 3.1 Kiva Peri"]
["Residential Withdrawal Management","Bed Days",null,"DEA, NP Nurse Practitioner, NPI","Nurse Practitioner",null,"MITE New Connections 3.5",3.5,null,"MITE 3.5 New Connections",3.5,null,"UMR","OHC",null,"MITE Kiva Perinatal Residential 3.2 WM",378773,null,"MITE 3.2 WM Kiva Peri"]
["DEA",null,null,"DEA, NPI",null,null,"SD Freedom Ranch Inc 3.5",3.5,null,"Freedom Ranch 3.5",3.5,null,"Blue Shield CA FEP","OHC",null,"MITE New Connections 3.1",378773,null,"MITE 3.1 New Connections"]
["NA DEA",null,null,"DEA, NPI, PA Physician Assistant/Associate","Physician Assistant",null,"The Fellowship Center 3.5",3.5,null,"The Fellowship Ctr 3.5",3.5,null,"Cigna Behavioral Health","OHC",null,"Pathfinders Cedar House 3.1",370070,null,"Pathfinders 3.1 Cedar Hse"]
[" PsyD Doctor of Psychology, Clinical Psychologist","Psychologist/Pre-licensed Psychologist",null,"DO Doctor of Osteopathy","Psychiatrist/ Contracted Psychiatrist/Licensed Physician (MD)",null,"Alpha Project Casa Raphael 3.5",3.5,null,"Alpha Proj 3.5 Casa Raphael",3.5,null,"Humana Medicare Advantage","OHC",null,"SD Freedom Ranch Inc 3.1",370030,null,"Freedom Ranch 3.1"]
["NPI",null,null,"DO Doctor of Osteopathy, NPI","Psychiatrist/ Contracted Psychiatrist/Licensed Physician (MD)",null,"Interfaith Escondido Community Sobering 3.5",3.5,null,"Interfaith 3.5 Comm Sober ESC",3.5,null,"Magellan Behavioral Health","OHC",null,"SD Freedom Ranch Inc 3.5",370030,null,"Freedom Ranch 3.5"]
["Ambulatory WM - Level 1","Ambulatory WM - Level 1",null,"Interactive Complexity","Interactive Complexity",null,"CRASH Short Term I 3.5",3.5,null,"CRASH 3.5 Golden Hill Hse",3.5,null,"Sharp Health Plan","OHC",null,"Stepping Stone SD Residential 3.1",370080,null,"Stepping Stone 3.1 SD"]
[" Psychologist Clinical Trainee","Psychologist/Pre-licensed Psychologist",null,"Interpreter Services","Interpreter Services",null,"Crossroads 3.5",3.5,null,"CRASH 3.5 Golden Hill Hse II",3.5,null,"TriCare West Reg/PGBA","OHC",null,"The Fellowship Center 3.1",370020,null,"The Fellowship Ctr 3.1"]
[" Other Qualified Provider","Other Qualified Providers - Other Designated MH staff that bill medical",null,"LCSW Licensed Clinical Social Worker","LPHA (MFT  LCSW  LPCC)/Intern or\nWaivered LPHA (MFT  LCSW  LPCC)",null,"MAAC Project Casa de Milagros 3.5",3.5,null,"CRASH 3.5 Short Term I",3.5,null,"TriWest VA Choice/WPS-VAPC3","OHC",null,"Twelfth Step House SD Heartland 3.1",370040,null,"Twelfth Step Hse 3.1 Heartland"]
["LCSW Licensed Clinical Social Worker","LPHA (MFT  LCSW  LPCC)/Intern or\nWaivered LPHA (MFT  LCSW  LPCC)",null,"LCSW Licensed Clinical Social Worker, NPI","LPHA (MFT  LCSW  LPCC)/Intern or\nWaivered LPHA (MFT  LCSW  LPCC)",null,"MAAC Project Nosotros 3.5",3.5,null,"Crossroads 3.5",3.5,null,"Medi-Cal DMC","Medi-Cal DMC",null,"Twelfth Step House SD Heartland 3.5",370040,null,"Twelfth Step Hse 3.5 Heartland"]
["LVN Licensed Vocational Nurse","Licensed Vocational Nurse",null,"LCSW Licensed Clinical Social Worker, RN Registered Nurse","LPHA (MFT  LCSW  LPCC)/Intern or\nWaivered LPHA (MFT  LCSW  LPCC)",null,"Pathfinders Cedar House 3.5",3.5,null,"MAAC 3.5 Casa de Milagros",3.5,null,"County Billable SUD","County Billable SUD",null,"The Way Back 3.1",370090,null,"The Way Back 3.1"]
["MFT Marriage and Family Therapist","LPHA (MFT  LCSW  LPCC)/Intern or\nWaivered LPHA (MFT  LCSW  LPCC)",null,"Licensed Psychiatrist, NPI",null,null,"Stepping Stone SD Residential 3.5",3.5,null,"MAAC 3.5 Nosotros",3.5,null,"Medicare Part C","OHC",null,"The Way Back 3.5",370090,null,"The Way Back 3.5"]
[" LPCC Licensed Professional Clinical Counselor","LPHA (MFT  LCSW  LPCC)/Intern or\nWaivered LPHA (MFT  LCSW  LPCC)",null,"LPCC Licensed Professional Clinical Counselor","LPHA (MFT  LCSW  LPCC)/Intern or\nWaivered LPHA (MFT  LCSW  LPCC)",null,"The Way Back 3.5",3.5,null,"Pathfinders 3.5 Cedar Hse",3.5,null,"Alignment Health Plan HMO Risk","OHC",null,"Tradition One 3.1",370100,null,"Tradition One 3.1"]
["LPCC Licensed Professional Clinical Counselor","LPHA (MFT  LCSW  LPCC)/Intern or\nWaivered LPHA (MFT  LCSW  LPCC)",null,"LPCC Licensed Professional Clinical Counselor Clinical Trainee, NPI","LPHA (MFT  LCSW  LPCC)/Intern or\nWaivered LPHA (MFT  LCSW  LPCC)",null,"Turning Point Home 3.5",3.5,null,"Stepping Stone 3.5 SD",3.5,null,"Blue Cross Medicare Risk","OHC",null,"Turning Point Home 3.1",370110,null,"Turning Pt Home 3.1"]
["MHRS Mental Health Rehabilitation Specialist","Mental Health Rehabilitation Specialist",null,"LPCC Licensed Professional Clinical Counselor, NPI","LPHA (MFT  LCSW  LPCC)/Intern or\nWaivered LPHA (MFT  LCSW  LPCC)",null,"HealthRIGHT 360 Serenity Center 3.5",3.5,null,"The Way Back 3.5",3.5,null,"Aetna 14089","OHC",null,"Turning Point Home 3.5",370110,null,"Turning Pt Home 3.5"]
["OT Occupational Therapist","Occupational Therapist",null,"LVN Clinical Trainee, NPI","Licensed Vocational Nurse",null,"MITE Kiva Perinatal Residential 3.5",3.5,null,"Turning Pt Home 3.5",3.5,null,"Beacon Health Options","OHC",null,"VVSD Veterans Rehab Center 3.1",370120]
[" MFT Marriage and Family Therapist","LPHA (MFT  LCSW  LPCC)/Intern or\nWaivered LPHA (MFT  LCSW  LPCC)",null,"LVN Licensed Vocational Nurse","Licensed Vocational Nurse",null,"TURN Family Recovery Center 3.5",3.5,null,"HealthRight 360 3.5 Serenity Ctr",3.5,null,"Blue Shield Promise (Care 1st)","OHC",null,"VVSD Veterans Rehab Center 3.5",370120]
["MD Medical Doctor","Psychiatrist/ Contracted Psychiatrist/Licensed Physician (MD)",null,"LVN Licensed Vocational Nurse, NPI","Licensed Vocational Nurse",null,"Twelfth Step House SD Heartland 3.5",3.5,null,"MITE 3.5 Kiva Peri",3.5,null,"Brand New Day","OHC",null,"MITE Kiva Perinatal Residential 3.5",378773,null,"MITE 3.5 Kiva Peri"]
["Interpreter Services","Interpreter Services",null,"Master's Degree LPHA Clinical Trainee","LPHA (MFT  LCSW  LPCC)/Intern or\nWaivered LPHA (MFT  LCSW  LPCC)",null,"New Entra Casa 3.5",3.5,null,"TURN 3.5 FRC",3.5,null,"MCP - Kaiser Permanente","OHC",null,"Stepping Stone SD Residential 3.5",370080,null,"Stepping Stone 3.5 SD"]
["Other Qualified Provider","Other Qualified Providers - Other Designated MH staff that bill medical",null,"Master's Degree LPHA Clinical Trainee, NPI","LPHA (MFT  LCSW  LPCC)/Intern or\nWaivered LPHA (MFT  LCSW  LPCC)",null,"MITE East County Detox 3.2 WM",3.2,null,"Twelfth Step Hse 3.5 Heartland",3.5,null,"MCP - Molina Healthcare","OHC",null,"The Fellowship Center 3.5",370020,null,"The Fellowship Ctr 3.5"]
[" Registered AOD Counselor","Alcohol and Drug Counselor",null,"MD Medical Doctor","Psychiatrist/ Contracted Psychiatrist/Licensed Physician (MD)",null,"SD Freedom Ranch Inc 3.2 WM",3.2,null,"New Entra Casa 3.5",3.5,null,"United Healthcare","OHC",null,"The Fellowship Center 3.2 WM",370020,null,"The Fellowship Ctr 3.2 WM"]
["CNS Clinical Nurse Specialist","Clinical Nurse Specialist",null,"MD Medical Doctor, NPI","Psychiatrist/ Contracted Psychiatrist/Licensed Physician (MD)",null,"The Fellowship Center 3.2 WM",3.2,null,"MITE 3.2 WM Cnty Detox E",3.2,null,"Wellcare","OHC",null,"MITE Adolescent Group Home East 3.5",373785]
[" DO Doctor of Osteopathy","Psychiatrist/ Contracted Psychiatrist/Licensed Physician (MD)",null,"Medical Assistant","Medical Assistant",null,"Interfaith Escondido Community Sobering 3.2 WM",3.2,null,"Freedom Ranch 3.2 WM",3.2,null,"Aetna 14079","OHC",null,"MITE New Connections 3.5",378773,null,"MITE 3.5 New Connections"]
["Admin Use Only - Bed Days","Bed Days",null,"Medical Assistant, NPI","Medical Assistant",null,"The Way Back 3.2 WM",3.2,null,"The Fellowship Ctr 3.2 WM",3.2,null,"Aetna Medicare Advantage H0523","OHC",null,"Interfaith Escondido Community Sobering 3.1",378703,null,"Interfaith 3.1 Comm Sober ESC"]
[" ASW Associate Social Worker","LPHA (MFT  LCSW  LPCC)/Intern or\nWaivered LPHA (MFT  LCSW  LPCC)",null,"MFT Marriage and Family Therapist","LPHA (MFT  LCSW  LPCC)/Intern or\nWaivered LPHA (MFT  LCSW  LPCC)",null,"HealthRIGHT 360 Serenity Center 3.2 WM",3.2,null,"Interfaith 3.2 WM Comm Sober ESC",3.2,null,"Blue Cross Blue Shield FEP","OHC",null,"Interfaith Escondido Community Sobering 3.5",378703,null,"Interfaith 3.5 Comm Sober ESC"]
["NP Nurse Practitioner","Nurse Practitioner",null,"MFT Marriage and Family Therapist Clinical Trainee","LPHA (MFT  LCSW  LPCC)/Intern or\nWaivered LPHA (MFT  LCSW  LPCC)",null,"MITE Kiva Perinatal Residential 3.2 WM",3.2,null,"The Way Back 3.2 WM",3.2,null,"CA Health and Wellness (MHN)","OHC",null,"MAAC Project Casa de Milagros 3.5",370050,null,"MAAC 3.5 Casa de Milagros"]
["RN Registered Nurse","Registered Nurse (RN)",null,"MFT Marriage and Family Therapist Clinical Trainee, NPI","LPHA (MFT  LCSW  LPCC)/Intern or\nWaivered LPHA (MFT  LCSW  LPCC)",null,"TURN Family Recovery Center 3.2 WM",3.2,null,"HealthRight 360 3.2 WM Serenity Ctr",3.2,null,"CHG CALMEDICONNECT/COMMUNICARE","OHC",null,"New Entra Casa 3.5",378541,null,"New Entra Casa 3.5"]
["PA Physician Assistant/Associate","Physician Assistant",null,"MFT Marriage and Family Therapist, NPI","LPHA (MFT  LCSW  LPCC)/Intern or\nWaivered LPHA (MFT  LCSW  LPCC)",null,"SD Freedom Ranch Inc 3.3",3.3,null,"MITE 3.2 WM Kiva Peri",3.2,null,"Cigna - GWH","OHC",null,"New Entra Casa 3.1",378541,null,"New Entra Casa 3.1"]
["Crisis Stabilization","Crisis Stabilization",null,"MHRS Mental Health Rehabilitation Specialist","Mental Health Rehabilitation Specialist",null,"Apex Recovery OS AWM","Level 1",null,"TURN 3.2 WM FRC",3.2,null,"Health Net Seniority Plus Risk HMO","OHC",null,"Interfaith Escondido Community Sobering 3.2 WM",378703,null,"Interfaith 3.2 WM Comm Sober ESC"]
["PhD Doctor of Philosophy, Clinical Psychologist","Psychologist/Pre-licensed Psychologist",null,"MHRS Mental Health Rehabilitation Specialist, NPI","Mental Health Rehabilitation Specialist",null,"NHA Healing Oaks OS AWM","Level 1",null,"Freedom Ranch 3.3",3.3,null,"Inland Empire Health Plan","OHC",null,"Pathfinders Dale House 3.1",378782,null,"Pathfinders 3.1 Dale Hse"]
[" Master's Degree LPHA Clinical Trainee","LPHA (MFT  LCSW  LPCC)/Intern or\nWaivered LPHA (MFT  LCSW  LPCC)",null,"NP Nurse Practitioner","Nurse Practitioner",null,"NHA Healing Oaks IOS AWM","Level 2",null,"MITE 3.1 Adolesc Grp Hm S",3.1,null,"Kaiser Medicare Advantage","OHC",null,"SD Freedom Ranch Inc 3.3",370030,null,"Freedom Ranch 3.3"]
[" NP Nurse Practitioner Clinical Trainee, RN Registered Nurse","Nurse Practitioner",null,"NP Nurse Practitioner Clinical Trainee","Nurse Practitioner",null,"MITE South Bay WRC OS AWM","Level 1",null,"MITE 3.5 Adolesc Grp Hm E",3.5,null,"SCRIPPS CLINIC","OHC",null,"SD Freedom Ranch Inc 3.2 WM",370030,null,"Freedom Ranch 3.2 WM"]
["Certified Peer Specialist","Peer Support Specialist",null,"NP Nurse Practitioner Clinical Trainee, NPI","Nurse Practitioner",null,"MITE North Inland WARC OS AWM","Level 1",null,"MITE 3.5 Adolesc Grp Hm S",3.5,null,"SCRIPPS PHYSICIAN MEDICAL GRP","OHC",null,"The Way Back 3.2 WM",370090,null,"The Way Back 3.2 WM"]
["Certified AOD Counselor","Alcohol and Drug Counselor",null,"NP Nurse Practitioner, NPI","Nurse Practitioner",null,"MITE North Coastal WRC OS AWM","Level 1",null,"MITE 3.1 Adolesc Grp Hm E",3.1,null,"Sharp Community Med Grp","OHC",null,"MITE East County RRC OS",378774,null,"MITE OS RRC Cnty E"]
["APCC Associate Professional Clinical Counselor","LPHA (MFT  LCSW  LPCC)/Intern or\nWaivered LPHA (MFT  LCSW  LPCC)",null,"NPI",null,null,"MITE North Central WRC OS AWM","Level 1",null,"HOM 3.5",3.5,null,"Tri-Care for Life-WPS","OHC",null,"MITE East County RRC IOS",378774,null,"MITE IOS RRC Cnty E"]
["Registered Pharmacist or Advanced Practice Pharmacist","Registered Pharmacist",null,"NPI, Other Qualified Provider","Other Qualified Providers - Other Designated MH staff that bill medical",null,"FHCSD Solutions for Recovery North OS AWM","Level 1",null,"Genesis Recovery 3.1",3.1,null,"United Behavioral Healthcare","OHC",null,"MITE South Bay RRC IOS",378521]
["Waivered Psychologist","Psychologist/Pre-licensed Psychologist",null,"NPI, PA Physician Assistant/Associate","Physician Assistant",null,"FHCSD Solutions for Recovery North IOS AWM","Level 2",null,"Genesis Recovery 3.5",3.5,null,"Medicare Part B-Noridian","OHC",null,"MITE South Bay RRC OS",378521]
["PsyD Doctor of Psychology, Clinical Psychologist","Psychologist/Pre-licensed Psychologist",null,"NPI, PhD Doctor of Philosophy, Clinical Psychologist","Psychiatrist/ Contracted Psychiatrist/Licensed Physician (MD)",null,"FHCSD Solutions for Recovery North IOS AWM","Level 2",null,"Crossroads 3.2 WM",3.2,null,"Humana Claims Center","OHC",null,"MITE South Bay WRC IOS",373771,null,"MITE IOS WRC S Bay"]
["PT Psychiatric Technician","Licensed Psychiatric Technician",null,"NPI, Psych Associate/RPS","Psychologist/Pre-licensed Psychologist",null,"MITE South Bay RRC OS AWM","Level 1",null,null,null,null,"SCAN Medicare Advantage","OHC",null,"MITE South Bay WRC OS",373771,null,"MITE OS WRC S Bay"]
["Licensed Psychiatrist","Psychiatrist/ Contracted Psychiatrist/Licensed Physician (MD)",null,"NPI, Psychologist Clinical Trainee","Psychologist/Pre-licensed Psychologist",null,"MITE East County RRC OS AWM","Level 1",null,null,null,null,"Greater Tri-Cities IPA","OHC",null,"MITE South TRC IOS",378592,null,"MITE IOS TRC S"]
["Limited Licensed Professional Counselor","LPHA (MFT  LCSW  LPCC)/Intern or\nWaivered LPHA (MFT  LCSW  LPCC)",null,"NPI, PsyD Doctor of Psychology, Clinical Psychologist","Psychiatrist/ Contracted Psychiatrist/Licensed Physician (MD)",null,"MITE North Inland RRC OS AWM","Level 1",null,null,null,null,"CHG/Communicare Medicare Advan","OHC",null,"MITE South TRC OS",378592,null,"MITE OS TRC S"]
["ASW Associate Social Worker","LPHA (MFT  LCSW  LPCC)/Intern or\nWaivered LPHA (MFT  LCSW  LPCC)",null,"NPI, PT Psychiatric Technician","Licensed Psychiatric Technician",null,"MITE NCRRC Mission Ave OS AWM","Level 1",null,null,null,null,"Health Management Concepts","OHC",null,"Turn to Recovery OS",373781]
["DO Doctor of Osteopathy","Psychiatrist/ Contracted Psychiatrist/Licensed Physician (MD)",null,"NPI, Registered AOD Counselor","Alcohol and Drug Counselor",null,"MITE Adolescent Group Home East 3.1",3.1,null,null,null,null,"SCAN Health Plan","OHC",null,"UPAC Adult IOS",373704,null,"UPAC IOS Adult"]
["LMHT","LPHA (MFT  LCSW  LPCC)/Intern or\nWaivered LPHA (MFT  LCSW  LPCC)",null,"NPI, Registered Pharmacist or Advanced Practice Pharmacist","Registered Pharmacist",null,"MITE Adolescent Group Home East 3.5",3.5,null,null,null,null,"Psychiatric Centers at San Diego","OHC",null,"Vista Hill ParentCare FRC East IOS",373736,null,"VH IOS FRC ParentCare E"]
["Master's Degree LPHA Clinical Trainee","LPHA (MFT  LCSW  LPCC)/Intern or\nWaivered LPHA (MFT  LCSW  LPCC)",null,"NPI, RN Registered Nurse","Registered Nurse (RN)",null,"MITE Adolescent Group Home South 3.1",3.1,null,null,null,null,"CARE 1ST CALMEDICONNECT/BEACON","OHC",null,"TURN North County Center for Change OS",373737,null,"TURN OS Ctr for Change N Cnty"]
["Medical Intern","Psychiatrist/ Contracted Psychiatrist/Licensed Physician (MD)",null,"NPI, Waivered Psychologist","Psychologist/Pre-licensed Psychologist",null,"MITE Adolescent Group Home South 3.5",3.5,null,null,null,null,"CARE FIRST PLAN - HF","OHC",null,"TURN TRC North Inland IOS",373790,null,"TURN IOS TRC N Inld"]
[" APCC Associate Professional Clinical Counselor, LPCC Licensed Professional Clinical Counselor","LPHA (MFT  LCSW  LPCC)/Intern or\nWaivered LPHA (MFT  LCSW  LPCC)",null,"OT Occupational Therapist","Occupational Therapist",null,"Genesis Recovery Inc. 3.1",3.1,null,null,null,null,"Sharp Rees-Stealy Med Grp","OHC",null,"TURN TRC North Inland OS",373790,null,"TURN OS TRC N Inld"]
["Overstay","Overstay",null,"Other Qualified Provider","Other Qualified Providers - Other Designated MH staff that bill medical",null,"Genesis Recovery Inc. 3.5",3.5,null,null,null,null,"Care 1st Medicare Advantage","OHC",null,"TURN East County Center for Change OS",373738,null,"TURN OS Ctr for Change E Cnty"]
[" Waivered Psychologist","Psychologist/Pre-licensed Psychologist",null,"PA Physician Assistant/Associate","Physician Assistant",null,"House of Metamorphosis 3.5",3.5,null,null,null,null,"COMMUNICARE ADVANTAGE","OHC",null,"TURN South County Center for Change OS",373719,null,"TURN OS Ctr for Change S Cnty"]
["0",null,null,"PhD Doctor of Philosophy, Clinical Psychologist","Psychologist/Pre-licensed Psychologist",null,"Crossroads 3.2 WM",3.2,null,null,null,null,"MCP - Blue Shield of California Promise Health Plan","OHC",null,"UPAC Adult OS",373704,null,"UPAC OS Adult"]
[" Medical Assistant","Medical Assistant",null,"Psych Associate/RPS","Psychologist/Pre-licensed Psychologist",null,"CRASH Golden Hill House 3.5",3.5,null,null,null,null,"Primary Care Assoc Med Grp","OHC",null,"MITE East TRC IOS",378558,null,"MITE IOS TRC E"]
[" PA Physician Assistant/Associate","Physician Assistant",null,"Psychologist Clinical Trainee","Psychologist/Pre-licensed Psychologist",null,null,null,null,null,null,null,"COMM. HEALTH GRP. - MED. RISK","OHC",null,"MITE East TRC OS",378558,null,"MITE OS TRC E"]
[" RN Registered Nurse","Registered Nurse (RN)",null,"PsyD Doctor of Psychology, Clinical Psychologist","Psychologist/Pre-licensed Psychologist",null,null,null,null,null,null,null,"San Diego Physicians Med Grp","OHC",null,"VISTA KNOLL SPECIALIZED CARE",378505]
[" LCSW Licensed Clinical Social Worker","LPHA (MFT  LCSW  LPCC)/Intern or\nWaivered LPHA (MFT  LCSW  LPCC)",null,"PT Psychiatric Technician","Licensed Psychiatric Technician",null,null,null,null,null,null,null,"SHARP COMMUNITY/ GRAYBILL","OHC",null,"Vista Hill ParentCare Central FRC IOS",378566,null,"VH IOS FRC ParentCare Ce"]
[" NP Nurse Practitioner","Nurse Practitioner",null,"Registered AOD Counselor","Alcohol and Drug Counselor",null,null,null,null,null,null,null,"CHAMPVA","OHC",null,"UPAC TRC OS",373704,null,"UPAC OS TRC Ce"]
["LPCC Licensed Professional Clinical Counselor Clinical Trainee","LPHA (MFT  LCSW  LPCC)/Intern or\nWaivered LPHA (MFT  LCSW  LPCC)",null,"Registered Pharmacist or Advanced Practice Pharmacist","Registered Pharmacist",null,null,null,null,null,null,null,"Principal Financial Group","OHC",null,"MITE North Inland WARC IOS",378590,null,"MITE IOS WARC N Inld"]
[" LVN Licensed Vocational Nurse","Licensed Vocational Nurse",null,"RN Registered Nurse","Registered Nurse (RN)",null,null,null,null,null,null,null,"AARP Medicare Supplement Plans","OHC",null,"MITE North Inland WARC OS",378590,null,"MITE OS WARC N Inld"]
[" APCC Associate Professional Clinical Counselor","LPHA (MFT  LCSW  LPCC)/Intern or\nWaivered LPHA (MFT  LCSW  LPCC)",null,"Taxonomy","Taxonomy",null,null,null,null,null,null,null,"Blue Shield - Out of State","OHC",null,"Vista Hill TRC Bridges OS",378587,null,"VH OS TRC Bridges"]
[" PhD Doctor of Philosophy, Clinical Psychologist","Psychologist/Pre-licensed Psychologist",null,"Waivered Psychologist","Psychologist/Pre-licensed Psychologist",null,null,null,null,null,null,null,"Physicians Care Ins Svcs","OHC",null,"Vista Hill TRC Bridges IOS",378587,null,"VH IOS TRC Bridges"]
["Taxonomy",null,null,null,null,null,null,null,null,null,null,null,"The Fellowship Center Standalone Svcs","OHC",null,"UPAC ALBA Community HS OS",378582,null,"UPAC OS TRC Alba Comm HS"]
["AMFT Associate Marriage and Family Therapist","LPHA (MFT  LCSW  LPCC)/Intern or\nWaivered LPHA (MFT  LCSW  LPCC)",null,null,null,null,null,null,null,null,null,null,"BLUE CROSS BLUE SHIELD-DALLAS","OHC",null,"UPAC TRC Hoover HS OS",378584,null,"UPAC OS TRC Hoover HS"]
["Medical Resident/ACGME Fellow","Psychiatrist/ Contracted Psychiatrist/Licensed Physician (MD)",null,null,null,null,null,null,null,null,null,null,"First Health Network","OHC",null,"UPAC TRC San Diego HS OS",378585,null,"UPAC OS TRC SD HS"]
["Psych Associate/RPS","Psychologist/Pre-licensed Psychologist",null,null,null,null,null,null,null,null,null,null,"Kaiser Permanente - Northern","OHC",null,"FHCSD Solutions for Recovery IOS",378564,null,"FHCSD IOS Solns For Recov"]
["Registered AOD Counselor","Alcohol and Drug Counselor",null,null,null,null,null,null,null,null,null,null,"PHCS S&S Healthcare Strategies","OHC",null,"FHCSD Solutions for Recovery OS",378564,null,"FHCSD OS Solns for Recov"]
["Medical Student in Clerkship (Physician Clinical Trainee)","Psychiatrist/ Contracted Psychiatrist/Licensed Physician (MD)",null,null,null,null,null,null,null,null,null,null,"PEAK PACE SOLUTIONS","OHC",null,"Vista Hill TRC Morse HS OS",378588,null,"VH OS TRC Morse HS"]
["NP Registered Associate","Nurse Practitioner",null,null,null,null,null,null,null,null,null,null,"COMMUNITY ELDERCARE SD","OHC",null,"Vista Hill TRC Morse HS IOS",378588,null,"VH IOS TRC Morse HS"]
["RN Registered Nurse Clinical Trainee","Registered Nurse (RN)",null,null,null,null,null,null,null,null,null,null,"UFCW Union + Food Benefit Fund","OHC",null,"Vista Hill TRC Lincoln HS OS",378594,null,"VH OS TRC Lincoln HS"]
["PA Registered Associate","Physician Assistant",null,null,null,null,null,null,null,null,null,null,null,null,null,"Vista Hill TRC Lincoln HS IOS",378594,null,"VH IOS TRC Lincoln HS"]
["Psychologist Clinical Trainee","Psychologist/Pre-licensed Psychologist",null,null,null,null,null,null,null,null,null,null,null,null,null,"Turn to Recovery IOS",373781]
["OT Occupational Therapist Clinical Trainee","Occupational Therapist",null,null,null,null,null,null,null,null,null,null,null,null,null,"ECS Central East RRC OS",378832,null,"ECS OS RRC CE E"]
["LVN Clinical Trainee","Licensed Vocational Nurse",null,null,null,null,null,null,null,null,null,null,null,null,null,"TURN Action Central OS",378524,null,"TURN OS Action CE"]
["NP Nurse Practitioner Clinical Trainee","Nurse Practitioner",null,null,null,null,null,null,null,null,null,null,null,null,null,"TURN Action Central IOS",378524,null,"TURN IOS Action CE"]
["CNS Clinical Nurse Specialist Clinical Trainee","Clinical Nurse Specialist",null,null,null,null,null,null,null,null,null,null,null,null,null,"DCS Signs of Life OS",378691,null,"DCS OS Signs of Life"]
["PA Physician Assistant/Associate Clinical Trainee","Physician Assistant",null,null,null,null,null,null,null,null,null,null,null,null,null,"ECS Central East RRC IOS",378832,null,"ECS IOS RRC CE E"]
["Pharmacist Clinical Trainee","Registered Pharmacist",null,null,null,null,null,null,null,null,null,null,null,null,null,"TURN Action East OS",378965,null,"TURN OS Action E"]
["PT Psychiatric Technician Clinical Trainee","Licensed Psychiatric Technician",null,null,null,null,null,null,null,null,null,null,null,null,null,"Vista Hill ParentCare FRC East OS",373736,null,"VH OS FRC ParentCare E"]
["Medical Assistant","Medical Assistant",null,null,null,null,null,null,null,null,null,null,null,null,null,"Vista Hill ParentCare Central FRC OS",378566,null,"VH OS FRC ParentCare Ce"]
["Registered Dietitian",null,null,null,null,null,null,null,null,null,null,null,null,null,null,"Second Chance ReEntry Court Prog OS",378964,null,"Sec Chance OS ReEntry Ct"]
["State License",null,null,null,null,null,null,null,null,null,null,null,null,null,null,"MITE North Inland RRC OS",378962,null,"MITE OS RRC N Inld"]
["Community Health Worker","Community Health Worker",null,null,null,null,null,null,null,null,null,null,null,null,null,"MITE North Inland RRC IOS",378962,null,"MITE IOS RRC N Inld"]
["MFT Marriage and Family Therapist Clinical Trainee","LPHA (MFT  LCSW  LPCC)/Intern or\nWaivered LPHA (MFT  LCSW  LPCC)",null,null,null,null,null,null,null,null,null,null,null,null,null,"MITE North Central WRC OS",378957,null,"MITE OS WRC NCE"]
["Traditional Healer",null,null,null,null,null,null,null,null,null,null,null,null,null,null,"MITE North Central WRC IOS",378957,null,"MITE IOS WRC NCE"]
["Natural Helper",null,null,null,null,null,null,null,null,null,null,null,null,null,null,"TURN Action East IOS",378965,null,"TURN IOS Action E"]
[" LVN Clinical Trainee","Licensed Vocational Nurse",null,null,null,null,null,null,null,null,null,null,null,null,null,"TURN TRC Fallbrook HS OS",378954,null,"TURN OS TRC Fallbrook HS"]
[" Medical Intern","Psychiatrist/ Contracted Psychiatrist/Licensed Physician (MD)",null,null,null,null,null,null,null,null,null,null,null,null,null,"TURN TRC Fallbrook HS IOS",378954,null,"TURN IOS TRC Fallbrook HS"]
[" Medical Resident/ACGME Fellow","Psychiatrist/ Contracted Psychiatrist/Licensed Physician (MD)",null,null,null,null,null,null,null,null,null,null,null,null,null,"TURN TRC Valley HS OS",378959,null,"TURN OS TRC Vlly HS"]
[" Medical Student in Clerkship (Physician Clinical Trainee)","Psychiatrist/ Contracted Psychiatrist/Licensed Physician (MD)",null,null,null,null,null,null,null,null,null,null,null,null,null,"TURN TRC Valley HS IOS",378959,null,"TURN IOS TRC Vlly HS"]
[" NP Registered Associate","Nurse Practitioner",null,null,null,null,null,null,null,null,null,null,null,null,null,"Second Chance ReEntry Court Prog IOS",378964,null,"Sec Chance IOS ReEntry Ct"]
[" OT Occupational Therapist Clinical Trainee","Occupational Therapist",null,null,null,null,null,null,null,null,null,null,null,null,null,"SOAP MAT NTP",378571,null,"Budget Team"]
[" PA Registered Associate","Physician Assistant",null,null,null,null,null,null,null,null,null,null,null,null,null,"MTS Oceanside NTP",378578,null,"Budget Team"]
[" PA Physician Assistant/Associate Clinical Trainee","Physician Assistant",null,null,null,null,null,null,null,null,null,null,null,null,null,"MTS Escondido NTP",378514,null,"Budget Team"]
[" CNS Clinical Nurse Specialist","Clinical Nurse Specialist",null,null,null,null,null,null,null,null,null,null,null,null,null,"MTS San Diego NTP",378523,null,"Budget Team"]
[" CNS Clinical Nurse Specialist Clinical Trainee","Clinical Nurse Specialist",null,null,null,null,null,null,null,null,null,null,null,null,null,"Acadia Fashion Valley NTP",378779,null,"Budget Team"]
[" Registered Pharmacist or Advanced Practice Pharmacist","Registered Pharmacist",null,null,null,null,null,null,null,null,null,null,null,null,null,"Acadia Third Avenue NTP",378777,null,"Budget Team"]
[" Pharmacist Clinical Trainee","Registered Pharmacist",null,null,null,null,null,null,null,null,null,null,null,null,null,"Acadia Capalina NTP",378778,null,"Budget Team"]
[" RN Registered Nurse Clinical Trainee","Registered Nurse (RN)",null,null,null,null,null,null,null,null,null,null,null,null,null,"Acadia El Cajon NTP",378780,null,"Budget Team"]
[" PT Psychiatric Technician Clinical Trainee","Licensed Psychiatric Technician",null,null,null,null,null,null,null,null,null,null,null,null,null,"DCS Signs of Life IOS",378691,null,"DCS IOS Signs of Life"]
[" Licensed Psychiatrist","Psychiatrist/ Contracted Psychiatrist/Licensed Physician (MD)",null,null,null,null,null,null,null,null,null,null,null,null,null,"El Dorado Community Service NTP",378562,null,"Budget Team"]
[" Limited Licensed Professional Counselor","LPHA (MFT  LCSW  LPCC)/Intern or\nWaivered LPHA (MFT  LCSW  LPCC)",null,null,null,null,null,null,null,null,null,null,null,null,null,"UPAC ALBA Community HS IOS",378582,null,"UPAC IOS TRC Alba Comm HS"]
[" Community Health Worker","Community Health Worker",null,null,null,null,null,null,null,null,null,null,null,null,null,"ECS Central East RRC Standalone Svcs",378832,null,"ECS SAS RRC CE E"]
[" LMHT","LPHA (MFT  LCSW  LPCC)/Intern or\nWaivered LPHA (MFT  LCSW  LPCC)",null,null,null,null,null,null,null,null,null,null,null,null,null,"Alpha Project Casa Raphael Standalone Svcs",373769]
[" MFT Marriage and Family Therapist Clinical Trainee","LPHA (MFT  LCSW  LPCC)/Intern or\nWaivered LPHA (MFT  LCSW  LPCC)",null,null,null,null,null,null,null,null,null,null,null,null,null,"CRASH Golden Hill House II Standalone Svcs",373791]
[" Registered AOD Counselor","Alcohol and Drug Counselor",null,null,null,null,null,null,null,null,null,null,null,null,null,"CRASH Short Term I Standalone Svcs",378766]
[" LPCC Licensed Professional Clinical Counselor Clinical Trainee","LPHA (MFT  LCSW  LPCC)/Intern or\nWaivered LPHA (MFT  LCSW  LPCC)",null,null,null,null,null,null,null,null,null,null,null,null,null,"CRASH Golden Hill House Standalone Svcs",378764]
[null,null,null,null,null,null,null,null,null,null,null,null,null,null,null,"Crossroads Standalone Svcs",370001,null,"Crossroads SAS"]
[null,null,null,null,null,null,null,null,null,null,null,null,null,null,null,"Vista Hill TRC Bridges Standalone Svcs",378587,null,"VH SAS TRC Bridges"]
[null,null,null,null,null,null,null,null,null,null,null,null,null,null,null,"Vista Hill ParentCare Central FRC Standalone Svcs",378566,null,"VH SAS FRC ParentCare Ce"]
[null,null,null,null,null,null,null,null,null,null,null,null,null,null,null,"Vista Hill Parentcare FRC East Standalone Svcs",373736,null,"VH SAS FRC ParentCare E"]
[null,null,null,null,null,null,null,null,null,null,null,null,null,null,null,"Vista Hill TRC Lincoln HS Standalone Svcs",378594,null,"VH SAS TRC Lincoln HS"]
[null,null,null,null,null,null,null,null,null,null,null,null,null,null,null,"Vista Hill TRC Morse HS Standalone Svcs",378588,null,"VH SAS TRC Morse HS"]
[null,null,null,null,null,null,null,null,null,null,null,null,null,null,null,"MITE South TRC Standalone Svcs",378592,null,"MITE SAS TRC S"]
[null,null,null,null,null,null,null,null,null,null,null,null,null,null,null,"MITE South Bay WRC Standalone Svcs",373771,null,"MITE SAS WRC S Bay"]
[null,null,null,null,null,null,null,null,null,null,null,null,null,null,null,"MITE South Bay RRC Standalone Svcs",378521]
[null,null,null,null,null,null,null,null,null,null,null,null,null,null,null,"MITE East County RRC Standalone Svcs",378774]
[null,null,null,null,null,null,null,null,null,null,null,null,null,null,null,"MITE East County Detox Standalone Svcs",378773]
[null,null,null,null,null,null,null,null,null,null,null,null,null,null,null,"MITE Adolescent Group Home East Standalone Svcs",373785]
[null,null,null,null,null,null,null,null,null,null,null,null,null,null,null,"MITE Kiva Perinatal Residential Standalone Svcs",378773,null,"MITE SAS Kiva Peri"]
[null,null,null,null,null,null,null,null,null,null,null,null,null,null,null,"MITE New Connections Standalone Svcs",378773,null,"MITE SAS New Connections"]
[null,null,null,null,null,null,null,null,null,null,null,null,null,null,null,"MITE Adolescent Group Home South Standalone Svcs",373787]
[null,null,null,null,null,null,null,null,null,null,null,null,null,null,null,"MITE East TRC Standalone Svcs",378558,null,"MITE SAS TRC E"]
[null,null,null,null,null,null,null,null,null,null,null,null,null,null,null,"MITE North Inland WARC Standalone Svcs",378590,null,"MITE SAS WARC N Inld"]
[null,null,null,null,null,null,null,null,null,null,null,null,null,null,null,"MITE North Inland RRC Standalone Svcs",378962,null,"MITE SAS RRC N Inld"]
[null,null,null,null,null,null,null,null,null,null,null,null,null,null,null,"MITE North Central WRC Standalone Svcs",378957,null,"MITE SAS WRC NCE"]
[null,null,null,null,null,null,null,null,null,null,null,null,null,null,null,"Turn to Recovery Standalone Svcs",373781]
[null,null,null,null,null,null,null,null,null,null,null,null,null,null,null,"TURN Family Recovery Center Standalone Svcs",373773,null,"TURN SAS FRC"]
[null,null,null,null,null,null,null,null,null,null,null,null,null,null,null,"TURN TRC North Inland Standalone Svcs",373790,null,"TURN SAS TRC N Inld"]
[null,null,null,null,null,null,null,null,null,null,null,null,null,null,null,"TURN South County Center for Change Standalone Svcs",373719,null,"TURN SAS Ctr for Change S Cnty"]
[null,null,null,null,null,null,null,null,null,null,null,null,null,null,null,"TURN East County Center for Change Standalone Svcs",373738,null,"TURN SAS Ctr for Change E Cnty"]
[null,null,null,null,null,null,null,null,null,null,null,null,null,null,null,"TURN North County Center for Change Standalone Svcs",373737,null,"TURN SAS Ctr for Change N Cnty"]
[null,null,null,null,null,null,null,null,null,null,null,null,null,null,null,"TURN TRC Fallbrook HS Standalone Svcs",378954,null,"TURN SAS TRC Fallbrook HS"]
[null,null,null,null,null,null,null,null,null,null,null,null,null,null,null,"TURN Action Central Standalone Svcs",378524,null,"TURN SAS Action CE"]
[null,null,null,null,null,null,null,null,null,null,null,null,null,null,null,"TURN Action East Standalone Svcs",378965,null,"TURN SAS Action E"]
[null,null,null,null,null,null,null,null,null,null,null,null,null,null,null,"TURN Valley TRC Standalone Svcs",378959,null,"TURN SAS TRC Vlly HS"]
[null,null,null,null,null,null,null,null,null,null,null,null,null,null,null,"DCS Signs of Life Standalone Svcs",378691,null,"DCS SAS Signs of Life"]
[null,null,null,null,null,null,null,null,null,null,null,null,null,null,null,"FHCSD Solutions for Recovery Standalone Svcs",378564,null,"FHCSD SAS Solns for Recov"]
[null,null,null,null,null,null,null,null,null,null,null,null,null,null,null,"SD Freedom Ranch Inc Standalone Svcs",370030,null,"Freedom Ranch SAS"]
[null,null,null,null,null,null,null,null,null,null,null,null,null,null,null,"HealthRIGHT 360 Serenity Center Standalone Svcs",378650,null,"HealthRight 360 SAS Serenity Ctr"]
[null,null,null,null,null,null,null,null,null,null,null,null,null,null,null,"House of Metamorphosis Standalone Svcs",378756,null,"HOM SAS"]
[null,null,null,null,null,null,null,null,null,null,null,null,null,null,null,"MAAC Project Casa de Milagros Standalone Svcs",370050,null,"MAAC SAS Casa De Milagros"]
[null,null,null,null,null,null,null,null,null,null,null,null,null,null,null,"MAAC Project Nosotros Standalone Svcs",370051,null,"MAAC SAS Nosotros"]
[null,null,null,null,null,null,null,null,null,null,null,null,null,null,null,"Pathfinders Cedar House Standalone Svcs",370070,null,"Pathfinders SAS Cedar Hse"]
[null,null,null,null,null,null,null,null,null,null,null,null,null,null,null,"Second Chance ReEntry Court Prog Standalone Svcs",378964,null,"Sec Chance SAS ReEntry Ct"]
[null,null,null,null,null,null,null,null,null,null,null,null,null,null,null,"Stepping Stone SD Residential Standalone Svcs",370080,null,"Stepping Stone SAS SD"]
[null,null,null,null,null,null,null,null,null,null,null,null,null,null,null,"The Fellowship Center Standalone Svcs",370020,null,"The Fellowship Ctr SAS"]
[null,null,null,null,null,null,null,null,null,null,null,null,null,null,null,"Twelfth Step House of SD Heartland Standalone Svcs",370040,null,"Twelfth Step Hse SAS Heartland"]
[null,null,null,null,null,null,null,null,null,null,null,null,null,null,null,"The Way Back Standalone Svcs",370090,null,"The Way Back SAS"]
[null,null,null,null,null,null,null,null,null,null,null,null,null,null,null,"Tradition One Standalone Svcs",370100,null,"Tradition One SAS"]
[null,null,null,null,null,null,null,null,null,null,null,null,null,null,null,"Turning Point Home Standalone Svcs",370110,null,"Turning Pt Home SAS"]
[null,null,null,null,null,null,null,null,null,null,null,null,null,null,null,"UPAC ALBA Community HS Standalone Svcs",378582,null,"UPAC SAS TRC Alba Comm HS"]
[null,null,null,null,null,null,null,null,null,null,null,null,null,null,null,"UPAC TRC San Diego HS Standalone Svcs",378585,null,"UPAC SAS TRC SD HS"]
[null,null,null,null,null,null,null,null,null,null,null,null,null,null,null,"UPAC TRC Standalone Svcs",373704,null,"UPAC SAS TRC Ce"]
[null,null,null,null,null,null,null,null,null,null,null,null,null,null,null,"UPAC Standalone Svcs",373704,null,"UPAC SAS Adult"]
[null,null,null,null,null,null,null,null,null,null,null,null,null,null,null,"VVSD Veterans Rehab Center Standalone Svcs",370120]
[null,null,null,null,null,null,null,null,null,null,null,null,null,null,null,"UPAC TRC Hoover HS Standalone Svcs",378584,null,"UPAC IOS TRC Hoover HS"]
[null,null,null,null,null,null,null,null,null,null,null,null,null,null,null,"MITE NCRRC Mission Ave OS",378744,null,"MITE OS RRC Mission Ave NCE"]
[null,null,null,null,null,null,null,null,null,null,null,null,null,null,null,"MITE NCRRC Mission Ave IOS",378744,null,"MITE IOS RRC Mission Ave NCE"]
[null,null,null,null,null,null,null,null,null,null,null,null,null,null,null,"MITE NCRRC Mission Ave Standalone Svcs",378744,null,"MITE SAS RRC Mission Ave NCE"]
[null,null,null,null,null,null,null,null,null,null,null,null,null,null,null,"Interfaith Escondido Community Sobering Standalone Svcs",378703,null,"InterFaith SAS Comm Sober ESC"]
[null,null,null,null,null,null,null,null,null,null,null,null,null,null,null,"MITE NCRRC Vista OS",378892,null,"MITE OS RRC Vista N"]
[null,null,null,null,null,null,null,null,null,null,null,null,null,null,null,"MITE NCRRC Vista IOS",378892,null,"MITE IOS RRC Vista N"]
[null,null,null,null,null,null,null,null,null,null,null,null,null,null,null,"MITE NCRRC Vista Standalone Svcs",378892,null,"MITE SAS RRC Vista N"]
[null,null,null,null,null,null,null,null,null,null,null,null,null,null,null,"TURN TRC North Inland Ramona HS IOS",378617,null,"TURN IOS TRC Ramona HS"]
[null,null,null,null,null,null,null,null,null,null,null,null,null,null,null,"TURN TRC North Inland Ramona HS OS",378617,null,"TURN OS TRC Ramona HS"]
[null,null,null,null,null,null,null,null,null,null,null,null,null,null,null,"TURN TRC North Inland Ramona HS Standalone Svcs",378617,null,"TURN SAS TRC Ramona HS"]
[null,null,null,null,null,null,null,null,null,null,null,null,null,null,null,"Interfaith Recovery and Wellness Center IOS",379071,null,"Interfaith IOS Recov and Wlns Ctr"]
[null,null,null,null,null,null,null,null,null,null,null,null,null,null,null,"Interfaith Recovery and Wellness Center OS",379071,null,"Interfaith OS Recov and Wlns Ctr"]
[null,null,null,null,null,null,null,null,null,null,null,null,null,null,null,"Interfaith Recovery and Wellness Center Standalone Svcs",379071,null,"Interfaith SAS Recov and Wlns Ctr"]
[null,null,null,null,null,null,null,null,null,null,null,null,null,null,null,"New Entra Casa RES Standalone Svcs",378541,null,"New Entra Casa SAS"]
[null,null,null,null,null,null,null,null,null,null,null,null,null,null,null,"TURN North County Center for Change IOS",373737,null,"TURN IOS Ctr for Change N Cnty"]
[null,null,null,null,null,null,null,null,null,null,null,null,null,null,null,"TURN South County Center for Change IOS",373719,null,"TURN IOS Ctr for Change S Cnty"]
[null,null,null,null,null,null,null,null,null,null,null,null,null,null,null,"TURN East County Center for Change IOS",373738,null,"TURN IOS Ctr for Change E Cnty"]
[null,null,null,null,null,null,null,null,null,null,null,null,null,null,null,"TURN TRC North Inland Poway HS OS",378838,null,"TURN OS TRC Poway HS"]
[null,null,null,null,null,null,null,null,null,null,null,null,null,null,null,"TURN TRC North Inland Poway HS Standalone Svcs",378838,null,"TURN SAS TRC Poway HS"]
[null,null,null,null,null,null,null,null,null,null,null,null,null,null,null,"TURN TRC North Inland Poway HS IOS",378838,null,"TURN IOS TRC Poway HS"]
[null,null,null,null,null,null,null,null,null,null,null,null,null,null,null,"UPAC TRC Hoover HS IOS",378584,null,"UPAC SAS TRC Hoover HS"]
[null,null,null,null,null,null,null,null,null,null,null,null,null,null,null,"UPAC TRC San Diego HS IOS",378585,null,"UPAC IOS TRC SD HS"]
[null,null,null,null,null,null,null,null,null,null,null,null,null,null,null,"UPAC TRC IOS",373704,null,"UPAC IOS TRC Ce"]
[null,null,null,null,null,null,null,null,null,null,null,null,null,null,null,"FHCSD South Bay Behavioral Health OS",378506,null,"FHCSD OS S Bay BH"]
[null,null,null,null,null,null,null,null,null,null,null,null,null,null,null,"FHCSD South Bay Behavioral Health IOS",378506,null,"FHCSD IOS S Bay BH"]
[null,null,null,null,null,null,null,null,null,null,null,null,null,null,null,"Pathfinders Dale House Standalone Svcs",378782,null,"Pathfinders SAS Dale Hse"]
[null,null,null,null,null,null,null,null,null,null,null,null,null,null,null,"FHCSD South Bay Behavioral Health Standalone Svcs",378506,null,"FHCSD SAS S Bay BH"]
[null,null,null,null,null,null,null,null,null,null,null,null,null,null,null,"NCL TRC TrueLife Recovery IOS",378586,null,"NCL IOS TRC TrueLife Recov"]
[null,null,null,null,null,null,null,null,null,null,null,null,null,null,null,"NCL TRC TrueLife Recovery OS",378586,null,"NCL OS TRC TrueLife Recov"]
[null,null,null,null,null,null,null,null,null,null,null,null,null,null,null,"NCL TRC TrueLife Recovery Standalone Svcs",378586,null,"NCL SAS TRC TrueLife Recov"]
[null,null,null,null,null,null,null,null,null,null,null,null,null,null,null,"TURN TRC North Central IOS",378581,null,"TURN IOS TRC N Ce"]
[null,null,null,null,null,null,null,null,null,null,null,null,null,null,null,"TURN TRC North Central OS",378581,null,"TURN OS TRC N Ce"]
[null,null,null,null,null,null,null,null,null,null,null,null,null,null,null,"TURN TRC North Central Standalone Svcs",378581,null,"TURN SAS TRC N Ce"]
[null,null,null,null,null,null,null,null,null,null,null,null,null,null,null,"MITE ETRC El Cajon Valley HS TRC IOS",378528]
[null,null,null,null,null,null,null,null,null,null,null,null,null,null,null,"MITE ETRC El Cajon Valley HS TRC Standalone Svcs",378528]
[null,null,null,null,null,null,null,null,null,null,null,null,null,null,null,"MITE ETRC El Cajon Valley HS OS",378528]
[null,null,null,null,null,null,null,null,null,null,null,null,null,null,null,"NCL TRC Vista HS OS",378527,null,"NCL OS TRC Vista HS"]
[null,null,null,null,null,null,null,null,null,null,null,null,null,null,null,"NCL TRC Vista HS IOS",378527,null,"NCL IOS TRC Vista HS"]
[null,null,null,null,null,null,null,null,null,null,null,null,null,null,null,"NCL TRC Vista High School Standalone Svcs",378527,null,"NCL SAS TRC Vista HS"]
[null,null,null,null,null,null,null,null,null,null,null,null,null,null,null,"MITE ETRC Monte Vista HS TRC IOS",378530,null,"MITE IOS TRC MonteVista E HS"]
[null,null,null,null,null,null,null,null,null,null,null,null,null,null,null,"MITE ETRC Monte Vista HS TRC OS",378530,null,"MITE OS TRC MonteVista E HS"]
[null,null,null,null,null,null,null,null,null,null,null,null,null,null,null,"MITE ETRC Monte Vista HS TRC Standalone Svcs",378530,null,"MITE SAS TRC MonteVista E HS"]
[null,null,null,null,null,null,null,null,null,null,null,null,null,null,null,"NCL TRC Rancho Buena Vista HS OS",378531,null,"NCL OS TRC Rancho BV HS"]
[null,null,null,null,null,null,null,null,null,null,null,null,null,null,null,"NCL TRC Rancho Buena Vista HS IOS",378531,null,"NCL IOS TRC Rancho BV HS"]
[null,null,null,null,null,null,null,null,null,null,null,null,null,null,null,"NCL TRC Rancho Buena Vista Standalone Svcs",378531,null,"NCL SAS TRC Rancho BV HS"]
[null,null,null,null,null,null,null,null,null,null,null,null,null,null,null,"TURN TRC Kearny HS IOS",378532,null,"TURN IOS TRC Kearny HS"]
[null,null,null,null,null,null,null,null,null,null,null,null,null,null,null,"TURN TRC Kearny HS OS",378532,null,"TURN OS TRC Kearny HS"]
[null,null,null,null,null,null,null,null,null,null,null,null,null,null,null,"TURN TRC Kearny HS Standalone Svcs",378532,null,"TURN SAS TRC Kearny HS"]
[null,null,null,null,null,null,null,null,null,null,null,null,null,null,null,"TURN TRC Madison HS IOS",378533,null,"TURN IOS TRC Madison HS"]
[null,null,null,null,null,null,null,null,null,null,null,null,null,null,null,"TURN TRC Madison HS OS",378533,null,"TURN OS TRC Madison HS"]
[null,null,null,null,null,null,null,null,null,null,null,null,null,null,null,"TURN TRC Madison HS Standalone Svcs",378533,null,"TURN SAS TRC Madison HS"]
[null,null,null,null,null,null,null,null,null,null,null,null,null,null,null,"Acadia Fashion Valley NTP Standalone Svcs",378779,null,"Budget Team"]
[null,null,null,null,null,null,null,null,null,null,null,null,null,null,null,"Acadia Third Avenue NTP Standalone Svcs",378777,null,"Budget Team"]
[null,null,null,null,null,null,null,null,null,null,null,null,null,null,null,"Acadia Capalina NTP Standalone Svcs",378778,null,"Budget Team"]
[null,null,null,null,null,null,null,null,null,null,null,null,null,null,null,"Acadia El Cajon NTP Standalone Svcs",378780,null,"Budget Team"]
[null,null,null,null,null,null,null,null,null,null,null,null,null,null,null,"El Dorado Community Service NTP Standalone Svcs",378562,null,"Budget Team"]
[null,null,null,null,null,null,null,null,null,null,null,null,null,null,null,"MITE STRC Southwest HS IOS",378536,null,"MITE IOS TRC SW HS"]
[null,null,null,null,null,null,null,null,null,null,null,null,null,null,null,"MITE STRC Southwest HS OS",378536,null,"MITE OS TRC SW HS"]
[null,null,null,null,null,null,null,null,null,null,null,null,null,null,null,"MITE STRC Southwest HS Standalone Svcs",378536,null,"MITE SAS TRC SW HS"]
[null,null,null,null,null,null,null,null,null,null,null,null,null,null,null,"MITE STRC Sweetwater HS IOS",378598,null,"MITE IOS TRC Sweetwater HS"]
[null,null,null,null,null,null,null,null,null,null,null,null,null,null,null,"MITE STRC Sweetwater HS OS",378598,null,"MITE OS TRC Sweetwater HS"]
[null,null,null,null,null,null,null,null,null,null,null,null,null,null,null,"MITE STRC Sweetwater HS Standalone Svcs",378598,null,"MITE SAS TRC Sweetwater HS"]
[null,null,null,null,null,null,null,null,null,null,null,null,null,null,null,"MTS Oceanside NTP Standalone Svcs",378578,null,"Budget Team"]
[null,null,null,null,null,null,null,null,null,null,null,null,null,null,null,"MTS Escondido NTP Standalone Svcs",378514,null,"Budget Team"]
[null,null,null,null,null,null,null,null,null,null,null,null,null,null,null,"MTS San Diego NTP Standalone Svcs",378523,null,"Budget Team"]
[null,null,null,null,null,null,null,null,null,null,null,null,null,null,null,"SOAP MAT NTP Standalone Svcs",378571,null,"Budget Team"]
[null,null,null,null,null,null,null,null,null,null,null,null,null,null,null,"UPAC TRC King Chavez Community HS Standalone Svcs",378600,null,"UPAC SAS TRC KingChavez HS"]
[null,null,null,null,null,null,null,null,null,null,null,null,null,null,null,"UPAC TRC King Chavez Community HS OS",378600,null,"UPAC OS TRC KingChavez HS"]
[null,null,null,null,null,null,null,null,null,null,null,null,null,null,null,"UPAC TRC King Chavez Community HS IOS",378600,null,"UPAC IOS TRC KingChavez HS"]
[null,null,null,null,null,null,null,null,null,null,null,null,null,null,null,"TURN TRC North Central Early Intervention",378581,null,"TURN EIS TRC N Ce"]
[null,null,null,null,null,null,null,null,null,null,null,null,null,null,null,"TURN TRC Kearny HS Early Intervention",378532]
[null,null,null,null,null,null,null,null,null,null,null,null,null,null,null,"TURN TRC Madison HS Early Intervention",378533,null,"TURN EIS TRC Madison HS"]
[null,null,null,null,null,null,null,null,null,null,null,null,null,null,null,"TURN TRC North Inland Early Intervention",373790,null,"TURN EIS TRC Kearny HS"]
[null,null,null,null,null,null,null,null,null,null,null,null,null,null,null,"TURN TRC Fallbrook HS Early Intervention",378954,null,"TURN EIS TRC Fallbrook HS"]
[null,null,null,null,null,null,null,null,null,null,null,null,null,null,null,"TURN North Inland TRC Poway HS Early Intervention",378838]
[null,null,null,null,null,null,null,null,null,null,null,null,null,null,null,"TURN TRC Valley HS Early Intervention",378959,null,"TURN EIS TRC N Inld"]
[null,null,null,null,null,null,null,null,null,null,null,null,null,null,null,"TURN TRC North Inland Ramona HS Early Intervention",378617,null,"TURN EIS TRC Ramona HS"]
[null,null,null,null,null,null,null,null,null,null,null,null,null,null,null,"UPAC TRC Early Intervention",373704,null,"UPAC EIS TRC Ce"]
[null,null,null,null,null,null,null,null,null,null,null,null,null,null,null,"UPAC TRC San Diego HS Early Intervention",378585,null,"UPAC EIS TRC SD HS"]
[null,null,null,null,null,null,null,null,null,null,null,null,null,null,null,"UPAC TRC Hoover HS Early Intervention",378584,null,"UPAC EIS TRC Hoover HS"]
[null,null,null,null,null,null,null,null,null,null,null,null,null,null,null,"Vista Hill TRC Bridges Early Intervention",378587,null,"VH EIS TRC Bridges"]
[null,null,null,null,null,null,null,null,null,null,null,null,null,null,null,"Vista Hill TRC Lincoln HS Early Intervention",378594,null,"VH EIS TRC Lincoln HS"]
[null,null,null,null,null,null,null,null,null,null,null,null,null,null,null,"NCL Vista High School Early Intervention",378527,null,"NCL EIS TRC Vista HS"]
[null,null,null,null,null,null,null,null,null,null,null,null,null,null,null,"NCL TRC Rancho Buena Vista HS Early Intervention",378531,null,"NCL EIS TRC Rancho BV HS"]
[null,null,null,null,null,null,null,null,null,null,null,null,null,null,null,"NCL TRC TrueLife Recovery Early Intervention",378586,null,"NCL EIS TRC TrueLife Recov"]
[null,null,null,null,null,null,null,null,null,null,null,null,null,null,null,"Vista Hill TRC GPA Bridges MS Standalone Svcs",378601,null,"VH OS TRC Bridges GPA MH"]
[null,null,null,null,null,null,null,null,null,null,null,null,null,null,null,"Vista Hill GPA VH Bridges Teen Center IOS",378601]
[null,null,null,null,null,null,null,null,null,null,null,null,null,null,null,"Vista Hill GPA VH Bridges Teen Center OS",378601]
[null,null,null,null,null,null,null,null,null,null,null,null,null,null,null,"Vista Hill GPA VH Bridges Teen Center Early Intervention",378601]
[null,null,null,null,null,null,null,null,null,null,null,null,null,null,null,"MITE North Coastal WRC OS",378602,null,"MITE OS WRC N Cstl"]
[null,null,null,null,null,null,null,null,null,null,null,null,null,null,null,"MITE North Coastal WRC IOS",378602,null,"MITE IOS WRC N Cstl"]
[null,null,null,null,null,null,null,null,null,null,null,null,null,null,null,"MITE North Coastal WRC Standalone Svcs",378602,null,"MITE SAS WRC N Cstl"]
[null,null,null,null,null,null,null,null,null,null,null,null,null,null,null,"Apex Recovery OS AWM",378603]
[null,null,null,null,null,null,null,null,null,null,null,null,null,null,null,"UPAC Expanding Horizons OS",378605,null,"UPAC OS Expanding Horizon"]
[null,null,null,null,null,null,null,null,null,null,null,null,null,null,null,"UPAC Expanding Horizons IOS",378605,null,"UPAC IOS Expanding Horizon"]
[null,null,null,null,null,null,null,null,null,null,null,null,null,null,null,"UPAC Expanding Horizons Standalone Svcs",378605,null,"UPAC SAS Expanding Horizon"]
[null,null,null,null,null,null,null,null,null,null,null,null,null,null,null,"Second Chance Drug Court Central OS",378606,null,"Sec Chance OS Drug Ct Ce"]
[null,null,null,null,null,null,null,null,null,null,null,null,null,null,null,"Second Chance Drug Court Central IOS",378606,null,"Sec Chance IOS Drug Ct Ce"]
[null,null,null,null,null,null,null,null,null,null,null,null,null,null,null,"Second Chance Drug Court Central Standalone Svcs",378606,null,"Sec Chance SAS Drug Ct Ce"]
[null,null,null,null,null,null,null,null,null,null,null,null,null,null,null,"NHA Healing Oaks OS",378607,null,"NHA OS Healing Oaks"]
[null,null,null,null,null,null,null,null,null,null,null,null,null,null,null,"NHA Healing Oaks IOS",378607,null,"NHA IOS Healing Oaks"]
[null,null,null,null,null,null,null,null,null,null,null,null,null,null,null,"NHA Healing Oaks Standalone Svcs",378607,null,"NHA SAS Healing Oaks"]
[null,null,null,null,null,null,null,null,null,null,null,null,null,null,null,"NHA Healing Oaks OS AWM",378607]
[null,null,null,null,null,null,null,null,null,null,null,null,null,null,null,"MITE East TRC Early Intervention",378558,null,"MITE EIS TRC E"]
[null,null,null,null,null,null,null,null,null,null,null,null,null,null,null,"MITE ETRC El Cajon Valley HS Early Intervention",378528]
[null,null,null,null,null,null,null,null,null,null,null,null,null,null,null,"MITE ETRC Monte Vista HS TRC Early Intervention",378530,null,"MITE EI TRC MonteVista E HS"]
[null,null,null,null,null,null,null,null,null,null,null,null,null,null,null,"MITE STRC Southwest HS Early Intervention",378536,null,"MITE EIS TRC SW HS"]
[null,null,null,null,null,null,null,null,null,null,null,null,null,null,null,"MITE STRC Sweetwater HS Early Intervention",378598,null,"MITE EIS TRC Sweetwater HS"]
[null,null,null,null,null,null,null,null,null,null,null,null,null,null,null,"MITE South TRC Early Intervention",378592,null,"MITE EIS TRC S"]
[null,null,null,null,null,null,null,null,null,null,null,null,null,null,null,"NHA Healing Oaks IOS AWM",378607]
[null,null,null,null,null,null,null,null,null,null,null,null,null,null,null,"NCL TRC Madison Middle School IOS",378609,null,"NCL IOS TRC Madison MS"]
[null,null,null,null,null,null,null,null,null,null,null,null,null,null,null,"NCL TRC Madison Middle School OS",378609,null,"NCL OS TRC Madison MS"]
[null,null,null,null,null,null,null,null,null,null,null,null,null,null,null,"NCL TRC Madison Middle School Early Intervention",378609,null,"NCL EIS TRC Madison MS"]
[null,null,null,null,null,null,null,null,null,null,null,null,null,null,null,"NCL TRC Madison Middle School Standalone Svcs",378609,null,"NCL SAS TRC Madison MS"]
[null,null,null,null,null,null,null,null,null,null,null,null,null,null,null,"MITE South Bay WRC OS AWM",373771,null,"MITE OS AWM WRC S Bay"]
[null,null,null,null,null,null,null,null,null,null,null,null,null,null,null,"MITE North Inland WARC OS AWM",378590,null,"MITE OS AWM WARC N Inld"]
[null,null,null,null,null,null,null,null,null,null,null,null,null,null,null,"MITE North Coastal WRC OS AWM",378602,null,"MITE OS AWM WRC N Cstl"]
[null,null,null,null,null,null,null,null,null,null,null,null,null,null,null,"MITE North Central WRC OS AWM",378957,null,"MITE OS AWM WRC NCE"]
[null,null,null,null,null,null,null,null,null,null,null,null,null,null,null,"Viejas Band of Kumeyaay Indians Revive Pathways NTP",378611,null,"Budget Team"]
[null,null,null,null,null,null,null,null,null,null,null,null,null,null,null,"UPAC TRC King Chavez Community HS Early Intervention",378600,null,"UPAC EIS TRC KingChavez HS"]
[null,null,null,null,null,null,null,null,null,null,null,null,null,null,null,"UPAC TRC ALBA Community HS Early Intervention",378582,null,"UPAC EIS TRC Alba Comm HS"]
[null,null,null,null,null,null,null,null,null,null,null,null,null,null,null,"Vista Hill TRC Morse HS Early Intervention",378588,null,"VH EIS TRC Morse HS"]
[null,null,null,null,null,null,null,null,null,null,null,null,null,null,null,"FHCSD Solutions for Recovery North OS",378613,null,"FHCSD OS Solns For Recov N"]
[null,null,null,null,null,null,null,null,null,null,null,null,null,null,null,"FHCSD Solutions for Recovery North IOS",378613,null,"FHCSD IOS Solns For Recov N"]
[null,null,null,null,null,null,null,null,null,null,null,null,null,null,null,"FHCSD Solutions for Recovery North OS AWM",378613,null,"FHCSD OS AWM Solns For Recov N"]
[null,null,null,null,null,null,null,null,null,null,null,null,null,null,null,"FHCSD Solutions for Recovery North Standalone Svcs",378613,null,"FHCSD SAS Solns For Recov N"]
[null,null,null,null,null,null,null,null,null,null,null,null,null,null,null,"FHCSD Solutions for Recovery North IOS AWM",378613,null,"FHCSD IOS AWM Solns For Recov N"]
[null,null,null,null,null,null,null,null,null,null,null,null,null,null,null,"CRASH Short Term I 3.5",378766,null,"CRASH 3.5 Short Term I"]
[null,null,null,null,null,null,null,null,null,null,null,null,null,null,null,"CRASH Golden Hill House 3.5",378764,null,"CRASH 3.5 Golden Hill Hse"]
[null,null,null,null,null,null,null,null,null,null,null,null,null,null,null,"CRASH Golden Hill House II 3.5",373791,null,"CRASH 3.5 Golden Hill Hse II"]
[null,null,null,null,null,null,null,null,null,null,null,null,null,null,null,"Pathfinders Cedar House 3.5",370070,null,"Pathfinders 3.5 Cedar Hse"]
[null,null,null,null,null,null,null,null,null,null,null,null,null,null,null,"SOAP MAT NTP Central",378614,null,"Budget Team"]
[null,null,null,null,null,null,null,null,null,null,null,null,null,null,null,"SOAP MAT NTP Central Standalone Svcs",378614,null,"Budget Team"]
[null,null,null,null,null,null,null,null,null,null,null,null,null,null,null,"Viejas Band of Kumeyaay Indians Revive Pathways NTP MH",378611,null,"Budget Team"]
[null,null,null,null,null,null,null,null,null,null,null,null,null,null,null,"MITE South Bay RRC OS AWM",378521]
[null,null,null,null,null,null,null,null,null,null,null,null,null,null,null,"MITE East County RRC OS AWM",378774]
[null,null,null,null,null,null,null,null,null,null,null,null,null,null,null,"MITE North Inland RRC OS AWM",378962]
[null,null,null,null,null,null,null,null,null,null,null,null,null,null,null,"MITE NCRRC Mission Ave OS AWM",378774]
[null,null,null,null,null,null,null,null,null,null,null,null,null,null,null,"MITE ETRC Mt. Empire TRC Standalone Svcs",378615]
[null,null,null,null,null,null,null,null,null,null,null,null,null,null,null,"MITE ETRC Mt. Empire TRC OS",378615]
[null,null,null,null,null,null,null,null,null,null,null,null,null,null,null,"MITE ETRC Mt. Empire TRC IOS",378615]
[null,null,null,null,null,null,null,null,null,null,null,null,null,null,null,"MITE ETRC Mt. Empire TRC Early Intervention",378615]
[null,null,null,null,null,null,null,null,null,null,null,null,null,null,null,"ECS Central East RRC IOS AWM",378832]
[null,null,null,null,null,null,null,null,null,null,null,null,null,null,null,"ECS Central East RRC OS AWM",378832]
[null,null,null,null,null,null,null,null,null,null,null,null,null,null,null,"ECS Central East RRC OS AWM",378832]
[null,null,null,null,null,null,null,null,null,null,null,null,null,null,null,"Genesis Recovery Inc. 3.1",378621]
[null,null,null,null,null,null,null,null,null,null,null,null,null,null,null,"Genesis Recovery Inc. 3.5",378621]
[null,null,null,null,null,null,null,null,null,null,null,null,null,null,null,"Genesis Recovery Inc. Standalone Svcs",378621]